{"text_format":"3","workbook":"xlsx","n_sheets":3,"sheets":["Veiksmų plano duomenys","Lankstusis veiksmų planas","Apie"],"not_rendered":{"defined_names":5},"read":"whole","date_system":"1900"}

{"sheet":"Veiksmų plano duomenys","index":0,"n_rows":13,"n_cols":7,"rows_kept":13,"merged":[[12,1,12,4]]}
["Sukurkite lankstųjį veiksmų planą įvesdami svarbias gaires arba veiklą šio darbalapio lentelėje Veiksmų plano duomenys.\nDarbalapio pavadinimas yra B1 langelyje. \nInformacija apie darbalapio naudojimą, įskaitant instrukcijas, kai naudojami ekrano skaitytuvai, pateikta darbalapyje Apie.\nNorėdami gauti tolesnių instrukcijų, toliau eikite A stulpeliu žemyn.","Lanksčiosios laiko planavimo juostos duomenys"]
["Lentelės antraštės yra langeliuose nuo B2 iki E2. Naudokite antraštės filtrus, kad rikiuotumėte lentelę ir rastumėte konkrečius elementus.\nLankstusis veiksmų planas veikia geriausiai, kai lentelė rikiuojama didėjimo tvarka pagal prioritetas, po kurio eina gairė arba veikla.\nDuomenų pavyzdys pateiktas lentelės Veiksmų plano duomenys langeliuose nuo B3 iki E12. \nUžbaigus gairė arba veikla, atnaujinkite atitinkamą lauką Rezultatas, kad rezultatai būtų rodomi darbalapyje Lankstusis veiksmų planas. Įveskite „Jokio pokyčio“, kad pažymėtumėte gaires, nedarančias poveikio.\nTolesnį nurodymą rasite perėję į A13 langelį.\n","Tikslas","Gairė arba veikla","Prioritetas","Rezultatas",null,"<-- rikiuokite lentelę pagal prioritetas ir gairę arba veiklą didėjimo tvarka"]
[null,"Dabartinis","1 veikla\nSukurti prototipą","1 – aukštas",null,null,"<-- įtraukite kiekvienos užbaigtos gairės rezultatą. Įveskite „Jokio pokyčio“, kad pažymėtumėte gaires, nedarančias poveikio."]
[null,"Trumpuoju laikotarpiu","2 veikla\nPademonstruoti prototipą","1 – aukštas"]
[null,"Dabartinis","6 veikla","1 – aukštas"]
[null,"Ateityje","7 veikla\nPerkelti pirmojo etapo įgyvendinimo darbus į kitą įmonę","1 – aukštas"]
[null,"Atlikta","9 veikla\nPirmasis etapas patvirtintas","1 – aukštas","10 % sumažėjimas"]
[null,"Ateityje","10 veikla","2 – vidutinis"]
[null,"Trumpuoju laikotarpiu","8 veikla","2 – vidutinis"]
[null,"Atlikta","3 veikla","3 – žemas","Jokio pokyčio"]
[null,"Ateityje","4 veikla","3 – žemas"]
[null,"Dabartinis","5 veikla","3 – žemas"]
["Įtraukite naujų elementų įterpdami naujų eilučių į lentelę virš šios eilutės.\nTai paskutinis nurodymas šiame darbalapyje.","Įtraukite naujų elementų įterpdami naujų eilučių virš šios eilutės"]

{"sheet":"Lankstusis veiksmų planas","index":1,"n_rows":100,"n_cols":8,"rows_kept":100}
["Lankstusis veiksmų planas, vaizduojantis darbalapyje Veiksmų plano duomenys nurodytas gaires ir veiklą, yra šiame darbalapyje. \nPavadinimas yra B1 langelyje. \nRezultatai, turintys frazę „Jokio pokyčio“, paryškinami šviesiai oranžine spalva, rgb(255, 230, 210).\nUžbaigtos gairės arba veikla paryškinami šviesiai žalia spalva, rgb(237,251,219).","Lankstusis veiksmų planas"]
["Diagramos antraštės yra B2, D2, F2 ir H2 langeliuose. Jos yra: Atlikta, Dabartinis, Trumpuoju laikotarpiu, Ateityje Keiskite šias antraštes, kad pakeistumėte pasirinkimo Tikslas reikšmes darbalapio Veiksmų plano duomenys lentelėje Veiksmų plano duomenys.\nLangeliuose nuo B3 iki H20 yra šioje eilutėje esančių antraščių gairės ir veikla. \nGairės ir veikla įtraukiami darbalapyje Veiksmų plano duomenys.\nNEKEISKITE ir NEPANAIKINKITE šiame darbalapyje esančių įrašų. Atnaujinkite darbalapio Veiksmų plano duomenys lentelę Veiksmų plano duomenys, kad atnaujintumėte šio darbalapio turinį.\nTai paskutinis nurodymas šiame darbalapyje.","Atlikta",null,"Dabartinis",null,"Trumpuoju laikotarpiu",null,"Ateityje"]
[null,{"$f":"IFERROR(INDEX(Veikla,SMALL(IF(Tikslas=$B$2,ROW(Veikla)-MIN(ROW(Veikla))+1),ROWS($B$3:B3)))&\" \"&CHAR(10)&(INDEX(Rezultatas,SMALL(IF(Tikslas=$B$2,ROW(Rezultatas)-MIN(ROW(Rezultatas))+1),ROWS($B$3:B3))))&CHAR(10),\"\")","v":"9 veikla\nPirmasis etapas patvirtintas \n10 % sumažėjimas\n"},null,{"$f":"IFERROR(INDEX(Veikla,SMALL(IF(Tikslas=$D$2,ROW(Veikla)-MIN(ROW(Veikla))+1),ROWS($B$3:B3)))&CHAR(10),\"\")","v":"1 veikla\nSukurti prototipą\n"},null,{"$f":"IFERROR(INDEX(Veikla,SMALL(IF(Tikslas=$F$2,ROW(Veikla)-MIN(ROW(Veikla))+1),ROWS($B$3:B3)))&CHAR(10),\"\")","v":"2 veikla\nPademonstruoti prototipą\n"},null,{"$f":"IFERROR(INDEX(Veikla,SMALL(IF(Tikslas=$H$2,ROW(Veikla)-MIN(ROW(Veikla))+1),ROWS($B$3:B3)))&CHAR(10),\"\")","v":"7 veikla\nPerkelti pirmojo etapo įgyvendinimo darbus į kitą įmonę\n"}]
[null,{"$f":"IFERROR(INDEX(Veikla,SMALL(IF(Tikslas=$B$2,ROW(Veikla)-MIN(ROW(Veikla))+1),ROWS($B$3:B4)))&\" \"&CHAR(10)&(INDEX(Rezultatas,SMALL(IF(Tikslas=$B$2,ROW(Rezultatas)-MIN(ROW(Rezultatas))+1),ROWS($B$3:B4))))&CHAR(10),\"\")","v":"3 veikla \nJokio pokyčio\n"},null,{"$f":"IFERROR(INDEX(Veikla,SMALL(IF(Tikslas=$D$2,ROW(Veikla)-MIN(ROW(Veikla))+1),ROWS($B$3:B4)))&CHAR(10),\"\")","v":"6 veikla\n"},null,{"$f":"IFERROR(INDEX(Veikla,SMALL(IF(Tikslas=$F$2,ROW(Veikla)-MIN(ROW(Veikla))+1),ROWS($B$3:B4)))&CHAR(10),\"\")","v":"8 veikla\n"},null,{"$f":"IFERROR(INDEX(Veikla,SMALL(IF(Tikslas=$H$2,ROW(Veikla)-MIN(ROW(Veikla))+1),ROWS($B$3:B4)))&CHAR(10),\"\")","v":"10 veikla\n"}]
[null,{"$f":"IFERROR(INDEX(Veikla,SMALL(IF(Tikslas=$B$2,ROW(Veikla)-MIN(ROW(Veikla))+1),ROWS($B$3:B5)))&\" \"&CHAR(10)&(INDEX(Rezultatas,SMALL(IF(Tikslas=$B$2,ROW(Rezultatas)-MIN(ROW(Rezultatas))+1),ROWS($B$3:B5))))&CHAR(10),\"\")","v":""},null,{"$f":"IFERROR(INDEX(Veikla,SMALL(IF(Tikslas=$D$2,ROW(Veikla)-MIN(ROW(Veikla))+1),ROWS($B$3:B5)))&CHAR(10),\"\")","v":"5 veikla\n"},null,{"$f":"IFERROR(INDEX(Veikla,SMALL(IF(Tikslas=$F$2,ROW(Veikla)-MIN(ROW(Veikla))+1),ROWS($B$3:B5)))&CHAR(10),\"\")","v":""},null,{"$f":"IFERROR(INDEX(Veikla,SMALL(IF(Tikslas=$H$2,ROW(Veikla)-MIN(ROW(Veikla))+1),ROWS($B$3:B5)))&CHAR(10),\"\")","v":"4 veikla\n"}]
[null,{"$f":"IFERROR(INDEX(Veikla,SMALL(IF(Tikslas=$B$2,ROW(Veikla)-MIN(ROW(Veikla))+1),ROWS($B$3:B6)))&\" \"&CHAR(10)&(INDEX(Rezultatas,SMALL(IF(Tikslas=$B$2,ROW(Rezultatas)-MIN(ROW(Rezultatas))+1),ROWS($B$3:B6))))&CHAR(10),\"\")","v":""},null,{"$f":"IFERROR(INDEX(Veikla,SMALL(IF(Tikslas=$D$2,ROW(Veikla)-MIN(ROW(Veikla))+1),ROWS($B$3:B6)))&CHAR(10),\"\")","v":""},null,{"$f":"IFERROR(INDEX(Veikla,SMALL(IF(Tikslas=$F$2,ROW(Veikla)-MIN(ROW(Veikla))+1),ROWS($B$3:B6)))&CHAR(10),\"\")","v":""},null,{"$f":"IFERROR(INDEX(Veikla,SMALL(IF(Tikslas=$H$2,ROW(Veikla)-MIN(ROW(Veikla))+1),ROWS($B$3:B6)))&CHAR(10),\"\")","v":""}]
[null,{"$f":"IFERROR(INDEX(Veikla,SMALL(IF(Tikslas=$B$2,ROW(Veikla)-MIN(ROW(Veikla))+1),ROWS($B$3:B7)))&\" \"&CHAR(10)&(INDEX(Rezultatas,SMALL(IF(Tikslas=$B$2,ROW(Rezultatas)-MIN(ROW(Rezultatas))+1),ROWS($B$3:B7))))&CHAR(10),\"\")","v":""},null,{"$f":"IFERROR(INDEX(Veikla,SMALL(IF(Tikslas=$D$2,ROW(Veikla)-MIN(ROW(Veikla))+1),ROWS($B$3:B7)))&CHAR(10),\"\")","v":""},null,{"$f":"IFERROR(INDEX(Veikla,SMALL(IF(Tikslas=$F$2,ROW(Veikla)-MIN(ROW(Veikla))+1),ROWS($B$3:B7)))&CHAR(10),\"\")","v":""},null,{"$f":"IFERROR(INDEX(Veikla,SMALL(IF(Tikslas=$H$2,ROW(Veikla)-MIN(ROW(Veikla))+1),ROWS($B$3:B7)))&CHAR(10),\"\")","v":""}]
[null,{"$f":"IFERROR(INDEX(Veikla,SMALL(IF(Tikslas=$B$2,ROW(Veikla)-MIN(ROW(Veikla))+1),ROWS($B$3:B8)))&\" \"&CHAR(10)&(INDEX(Rezultatas,SMALL(IF(Tikslas=$B$2,ROW(Rezultatas)-MIN(ROW(Rezultatas))+1),ROWS($B$3:B8))))&CHAR(10),\"\")","v":""},null,{"$f":"IFERROR(INDEX(Veikla,SMALL(IF(Tikslas=$D$2,ROW(Veikla)-MIN(ROW(Veikla))+1),ROWS($B$3:B8)))&CHAR(10),\"\")","v":""},null,{"$f":"IFERROR(INDEX(Veikla,SMALL(IF(Tikslas=$F$2,ROW(Veikla)-MIN(ROW(Veikla))+1),ROWS($B$3:B8)))&CHAR(10),\"\")","v":""},null,{"$f":"IFERROR(INDEX(Veikla,SMALL(IF(Tikslas=$H$2,ROW(Veikla)-MIN(ROW(Veikla))+1),ROWS($B$3:B8)))&CHAR(10),\"\")","v":""}]
[null,{"$f":"IFERROR(INDEX(Veikla,SMALL(IF(Tikslas=$B$2,ROW(Veikla)-MIN(ROW(Veikla))+1),ROWS($B$3:B9)))&\" \"&CHAR(10)&(INDEX(Rezultatas,SMALL(IF(Tikslas=$B$2,ROW(Rezultatas)-MIN(ROW(Rezultatas))+1),ROWS($B$3:B9))))&CHAR(10),\"\")","v":""},null,{"$f":"IFERROR(INDEX(Veikla,SMALL(IF(Tikslas=$D$2,ROW(Veikla)-MIN(ROW(Veikla))+1),ROWS($B$3:B9)))&CHAR(10),\"\")","v":""},null,{"$f":"IFERROR(INDEX(Veikla,SMALL(IF(Tikslas=$F$2,ROW(Veikla)-MIN(ROW(Veikla))+1),ROWS($B$3:B9)))&CHAR(10),\"\")","v":""},null,{"$f":"IFERROR(INDEX(Veikla,SMALL(IF(Tikslas=$H$2,ROW(Veikla)-MIN(ROW(Veikla))+1),ROWS($B$3:B9)))&CHAR(10),\"\")","v":""}]
[null,{"$f":"IFERROR(INDEX(Veikla,SMALL(IF(Tikslas=$B$2,ROW(Veikla)-MIN(ROW(Veikla))+1),ROWS($B$3:B10)))&\" \"&CHAR(10)&(INDEX(Rezultatas,SMALL(IF(Tikslas=$B$2,ROW(Rezultatas)-MIN(ROW(Rezultatas))+1),ROWS($B$3:B10))))&CHAR(10),\"\")","v":""},null,{"$f":"IFERROR(INDEX(Veikla,SMALL(IF(Tikslas=$D$2,ROW(Veikla)-MIN(ROW(Veikla))+1),ROWS($B$3:B10)))&CHAR(10),\"\")","v":""},null,{"$f":"IFERROR(INDEX(Veikla,SMALL(IF(Tikslas=$F$2,ROW(Veikla)-MIN(ROW(Veikla))+1),ROWS($B$3:B10)))&CHAR(10),\"\")","v":""},null,{"$f":"IFERROR(INDEX(Veikla,SMALL(IF(Tikslas=$H$2,ROW(Veikla)-MIN(ROW(Veikla))+1),ROWS($B$3:B10)))&CHAR(10),\"\")","v":""}]
[null,{"$f":"IFERROR(INDEX(Veikla,SMALL(IF(Tikslas=$B$2,ROW(Veikla)-MIN(ROW(Veikla))+1),ROWS($B$3:B11)))&\" \"&CHAR(10)&(INDEX(Rezultatas,SMALL(IF(Tikslas=$B$2,ROW(Rezultatas)-MIN(ROW(Rezultatas))+1),ROWS($B$3:B11))))&CHAR(10),\"\")","v":""},null,{"$f":"IFERROR(INDEX(Veikla,SMALL(IF(Tikslas=$D$2,ROW(Veikla)-MIN(ROW(Veikla))+1),ROWS($B$3:B11)))&CHAR(10),\"\")","v":""},null,{"$f":"IFERROR(INDEX(Veikla,SMALL(IF(Tikslas=$F$2,ROW(Veikla)-MIN(ROW(Veikla))+1),ROWS($B$3:B11)))&CHAR(10),\"\")","v":""},null,{"$f":"IFERROR(INDEX(Veikla,SMALL(IF(Tikslas=$H$2,ROW(Veikla)-MIN(ROW(Veikla))+1),ROWS($B$3:B11)))&CHAR(10),\"\")","v":""}]
[null,{"$f":"IFERROR(INDEX(Veikla,SMALL(IF(Tikslas=$B$2,ROW(Veikla)-MIN(ROW(Veikla))+1),ROWS($B$3:B12)))&\" \"&CHAR(10)&(INDEX(Rezultatas,SMALL(IF(Tikslas=$B$2,ROW(Rezultatas)-MIN(ROW(Rezultatas))+1),ROWS($B$3:B12))))&CHAR(10),\"\")","v":""},null,{"$f":"IFERROR(INDEX(Veikla,SMALL(IF(Tikslas=$D$2,ROW(Veikla)-MIN(ROW(Veikla))+1),ROWS($B$3:B12)))&CHAR(10),\"\")","v":""},null,{"$f":"IFERROR(INDEX(Veikla,SMALL(IF(Tikslas=$F$2,ROW(Veikla)-MIN(ROW(Veikla))+1),ROWS($B$3:B12)))&CHAR(10),\"\")","v":""},null,{"$f":"IFERROR(INDEX(Veikla,SMALL(IF(Tikslas=$H$2,ROW(Veikla)-MIN(ROW(Veikla))+1),ROWS($B$3:B12)))&CHAR(10),\"\")","v":""}]
[null,{"$f":"IFERROR(INDEX(Veikla,SMALL(IF(Tikslas=$B$2,ROW(Veikla)-MIN(ROW(Veikla))+1),ROWS($B$3:B13)))&\" \"&CHAR(10)&(INDEX(Rezultatas,SMALL(IF(Tikslas=$B$2,ROW(Rezultatas)-MIN(ROW(Rezultatas))+1),ROWS($B$3:B13))))&CHAR(10),\"\")","v":""},null,{"$f":"IFERROR(INDEX(Veikla,SMALL(IF(Tikslas=$D$2,ROW(Veikla)-MIN(ROW(Veikla))+1),ROWS($B$3:B13)))&CHAR(10),\"\")","v":""},null,{"$f":"IFERROR(INDEX(Veikla,SMALL(IF(Tikslas=$F$2,ROW(Veikla)-MIN(ROW(Veikla))+1),ROWS($B$3:B13)))&CHAR(10),\"\")","v":""},null,{"$f":"IFERROR(INDEX(Veikla,SMALL(IF(Tikslas=$H$2,ROW(Veikla)-MIN(ROW(Veikla))+1),ROWS($B$3:B13)))&CHAR(10),\"\")","v":""}]
[null,{"$f":"IFERROR(INDEX(Veikla,SMALL(IF(Tikslas=$B$2,ROW(Veikla)-MIN(ROW(Veikla))+1),ROWS($B$3:B14)))&\" \"&CHAR(10)&(INDEX(Rezultatas,SMALL(IF(Tikslas=$B$2,ROW(Rezultatas)-MIN(ROW(Rezultatas))+1),ROWS($B$3:B14))))&CHAR(10),\"\")","v":""},null,{"$f":"IFERROR(INDEX(Veikla,SMALL(IF(Tikslas=$D$2,ROW(Veikla)-MIN(ROW(Veikla))+1),ROWS($B$3:B14)))&CHAR(10),\"\")","v":""},null,{"$f":"IFERROR(INDEX(Veikla,SMALL(IF(Tikslas=$F$2,ROW(Veikla)-MIN(ROW(Veikla))+1),ROWS($B$3:B14)))&CHAR(10),\"\")","v":""},null,{"$f":"IFERROR(INDEX(Veikla,SMALL(IF(Tikslas=$H$2,ROW(Veikla)-MIN(ROW(Veikla))+1),ROWS($B$3:B14)))&CHAR(10),\"\")","v":""}]
[null,{"$f":"IFERROR(INDEX(Veikla,SMALL(IF(Tikslas=$B$2,ROW(Veikla)-MIN(ROW(Veikla))+1),ROWS($B$3:B15)))&\" \"&CHAR(10)&(INDEX(Rezultatas,SMALL(IF(Tikslas=$B$2,ROW(Rezultatas)-MIN(ROW(Rezultatas))+1),ROWS($B$3:B15))))&CHAR(10),\"\")","v":""},null,{"$f":"IFERROR(INDEX(Veikla,SMALL(IF(Tikslas=$D$2,ROW(Veikla)-MIN(ROW(Veikla))+1),ROWS($B$3:B15)))&CHAR(10),\"\")","v":""},null,{"$f":"IFERROR(INDEX(Veikla,SMALL(IF(Tikslas=$F$2,ROW(Veikla)-MIN(ROW(Veikla))+1),ROWS($B$3:B15)))&CHAR(10),\"\")","v":""},null,{"$f":"IFERROR(INDEX(Veikla,SMALL(IF(Tikslas=$H$2,ROW(Veikla)-MIN(ROW(Veikla))+1),ROWS($B$3:B15)))&CHAR(10),\"\")","v":""}]
[null,{"$f":"IFERROR(INDEX(Veikla,SMALL(IF(Tikslas=$B$2,ROW(Veikla)-MIN(ROW(Veikla))+1),ROWS($B$3:B16)))&\" \"&CHAR(10)&(INDEX(Rezultatas,SMALL(IF(Tikslas=$B$2,ROW(Rezultatas)-MIN(ROW(Rezultatas))+1),ROWS($B$3:B16))))&CHAR(10),\"\")","v":""},null,{"$f":"IFERROR(INDEX(Veikla,SMALL(IF(Tikslas=$D$2,ROW(Veikla)-MIN(ROW(Veikla))+1),ROWS($B$3:B16)))&CHAR(10),\"\")","v":""},null,{"$f":"IFERROR(INDEX(Veikla,SMALL(IF(Tikslas=$F$2,ROW(Veikla)-MIN(ROW(Veikla))+1),ROWS($B$3:B16)))&CHAR(10),\"\")","v":""},null,{"$f":"IFERROR(INDEX(Veikla,SMALL(IF(Tikslas=$H$2,ROW(Veikla)-MIN(ROW(Veikla))+1),ROWS($B$3:B16)))&CHAR(10),\"\")","v":""}]
[null,{"$f":"IFERROR(INDEX(Veikla,SMALL(IF(Tikslas=$B$2,ROW(Veikla)-MIN(ROW(Veikla))+1),ROWS($B$3:B17)))&\" \"&CHAR(10)&(INDEX(Rezultatas,SMALL(IF(Tikslas=$B$2,ROW(Rezultatas)-MIN(ROW(Rezultatas))+1),ROWS($B$3:B17))))&CHAR(10),\"\")","v":""},null,{"$f":"IFERROR(INDEX(Veikla,SMALL(IF(Tikslas=$D$2,ROW(Veikla)-MIN(ROW(Veikla))+1),ROWS($B$3:B17)))&CHAR(10),\"\")","v":""},null,{"$f":"IFERROR(INDEX(Veikla,SMALL(IF(Tikslas=$F$2,ROW(Veikla)-MIN(ROW(Veikla))+1),ROWS($B$3:B17)))&CHAR(10),\"\")","v":""},null,{"$f":"IFERROR(INDEX(Veikla,SMALL(IF(Tikslas=$H$2,ROW(Veikla)-MIN(ROW(Veikla))+1),ROWS($B$3:B17)))&CHAR(10),\"\")","v":""}]
[null,{"$f":"IFERROR(INDEX(Veikla,SMALL(IF(Tikslas=$B$2,ROW(Veikla)-MIN(ROW(Veikla))+1),ROWS($B$3:B18)))&\" \"&CHAR(10)&(INDEX(Rezultatas,SMALL(IF(Tikslas=$B$2,ROW(Rezultatas)-MIN(ROW(Rezultatas))+1),ROWS($B$3:B18))))&CHAR(10),\"\")","v":""},null,{"$f":"IFERROR(INDEX(Veikla,SMALL(IF(Tikslas=$D$2,ROW(Veikla)-MIN(ROW(Veikla))+1),ROWS($B$3:B18)))&CHAR(10),\"\")","v":""},null,{"$f":"IFERROR(INDEX(Veikla,SMALL(IF(Tikslas=$F$2,ROW(Veikla)-MIN(ROW(Veikla))+1),ROWS($B$3:B18)))&CHAR(10),\"\")","v":""},null,{"$f":"IFERROR(INDEX(Veikla,SMALL(IF(Tikslas=$H$2,ROW(Veikla)-MIN(ROW(Veikla))+1),ROWS($B$3:B18)))&CHAR(10),\"\")","v":""}]
[null,{"$f":"IFERROR(INDEX(Veikla,SMALL(IF(Tikslas=$B$2,ROW(Veikla)-MIN(ROW(Veikla))+1),ROWS($B$3:B19)))&\" \"&CHAR(10)&(INDEX(Rezultatas,SMALL(IF(Tikslas=$B$2,ROW(Rezultatas)-MIN(ROW(Rezultatas))+1),ROWS($B$3:B19))))&CHAR(10),\"\")","v":""},null,{"$f":"IFERROR(INDEX(Veikla,SMALL(IF(Tikslas=$D$2,ROW(Veikla)-MIN(ROW(Veikla))+1),ROWS($B$3:B19)))&CHAR(10),\"\")","v":""},null,{"$f":"IFERROR(INDEX(Veikla,SMALL(IF(Tikslas=$F$2,ROW(Veikla)-MIN(ROW(Veikla))+1),ROWS($B$3:B19)))&CHAR(10),\"\")","v":""},null,{"$f":"IFERROR(INDEX(Veikla,SMALL(IF(Tikslas=$H$2,ROW(Veikla)-MIN(ROW(Veikla))+1),ROWS($B$3:B19)))&CHAR(10),\"\")","v":""}]
[null,{"$f":"IFERROR(INDEX(Veikla,SMALL(IF(Tikslas=$B$2,ROW(Veikla)-MIN(ROW(Veikla))+1),ROWS($B$3:B20)))&\" \"&CHAR(10)&(INDEX(Rezultatas,SMALL(IF(Tikslas=$B$2,ROW(Rezultatas)-MIN(ROW(Rezultatas))+1),ROWS($B$3:B20))))&CHAR(10),\"\")","v":""},null,{"$f":"IFERROR(INDEX(Veikla,SMALL(IF(Tikslas=$D$2,ROW(Veikla)-MIN(ROW(Veikla))+1),ROWS($B$3:B20)))&CHAR(10),\"\")","v":""},null,{"$f":"IFERROR(INDEX(Veikla,SMALL(IF(Tikslas=$F$2,ROW(Veikla)-MIN(ROW(Veikla))+1),ROWS($B$3:B20)))&CHAR(10),\"\")","v":""},null,{"$f":"IFERROR(INDEX(Veikla,SMALL(IF(Tikslas=$H$2,ROW(Veikla)-MIN(ROW(Veikla))+1),ROWS($B$3:B20)))&CHAR(10),\"\")","v":""}]
[null,{"$f":"IFERROR(INDEX(Veikla,SMALL(IF(Tikslas=$B$2,ROW(Veikla)-MIN(ROW(Veikla))+1),ROWS($B$3:B21)))&\" \"&CHAR(10)&(INDEX(Rezultatas,SMALL(IF(Tikslas=$B$2,ROW(Rezultatas)-MIN(ROW(Rezultatas))+1),ROWS($B$3:B21))))&CHAR(10),\"\")","v":""},null,{"$f":"IFERROR(INDEX(Veikla,SMALL(IF(Tikslas=$D$2,ROW(Veikla)-MIN(ROW(Veikla))+1),ROWS($B$3:B21)))&CHAR(10),\"\")","v":""},null,{"$f":"IFERROR(INDEX(Veikla,SMALL(IF(Tikslas=$F$2,ROW(Veikla)-MIN(ROW(Veikla))+1),ROWS($B$3:B21)))&CHAR(10),\"\")","v":""},null,{"$f":"IFERROR(INDEX(Veikla,SMALL(IF(Tikslas=$H$2,ROW(Veikla)-MIN(ROW(Veikla))+1),ROWS($B$3:B21)))&CHAR(10),\"\")","v":""}]
[null,{"$f":"IFERROR(INDEX(Veikla,SMALL(IF(Tikslas=$B$2,ROW(Veikla)-MIN(ROW(Veikla))+1),ROWS($B$3:B22)))&\" \"&CHAR(10)&(INDEX(Rezultatas,SMALL(IF(Tikslas=$B$2,ROW(Rezultatas)-MIN(ROW(Rezultatas))+1),ROWS($B$3:B22))))&CHAR(10),\"\")","v":""},null,{"$f":"IFERROR(INDEX(Veikla,SMALL(IF(Tikslas=$D$2,ROW(Veikla)-MIN(ROW(Veikla))+1),ROWS($B$3:B22)))&CHAR(10),\"\")","v":""},null,{"$f":"IFERROR(INDEX(Veikla,SMALL(IF(Tikslas=$F$2,ROW(Veikla)-MIN(ROW(Veikla))+1),ROWS($B$3:B22)))&CHAR(10),\"\")","v":""},null,{"$f":"IFERROR(INDEX(Veikla,SMALL(IF(Tikslas=$H$2,ROW(Veikla)-MIN(ROW(Veikla))+1),ROWS($B$3:B22)))&CHAR(10),\"\")","v":""}]
[null,{"$f":"IFERROR(INDEX(Veikla,SMALL(IF(Tikslas=$B$2,ROW(Veikla)-MIN(ROW(Veikla))+1),ROWS($B$3:B23)))&\" \"&CHAR(10)&(INDEX(Rezultatas,SMALL(IF(Tikslas=$B$2,ROW(Rezultatas)-MIN(ROW(Rezultatas))+1),ROWS($B$3:B23))))&CHAR(10),\"\")","v":""},null,{"$f":"IFERROR(INDEX(Veikla,SMALL(IF(Tikslas=$D$2,ROW(Veikla)-MIN(ROW(Veikla))+1),ROWS($B$3:B23)))&CHAR(10),\"\")","v":""},null,{"$f":"IFERROR(INDEX(Veikla,SMALL(IF(Tikslas=$F$2,ROW(Veikla)-MIN(ROW(Veikla))+1),ROWS($B$3:B23)))&CHAR(10),\"\")","v":""},null,{"$f":"IFERROR(INDEX(Veikla,SMALL(IF(Tikslas=$H$2,ROW(Veikla)-MIN(ROW(Veikla))+1),ROWS($B$3:B23)))&CHAR(10),\"\")","v":""}]
[null,{"$f":"IFERROR(INDEX(Veikla,SMALL(IF(Tikslas=$B$2,ROW(Veikla)-MIN(ROW(Veikla))+1),ROWS($B$3:B24)))&\" \"&CHAR(10)&(INDEX(Rezultatas,SMALL(IF(Tikslas=$B$2,ROW(Rezultatas)-MIN(ROW(Rezultatas))+1),ROWS($B$3:B24))))&CHAR(10),\"\")","v":""},null,{"$f":"IFERROR(INDEX(Veikla,SMALL(IF(Tikslas=$D$2,ROW(Veikla)-MIN(ROW(Veikla))+1),ROWS($B$3:B24)))&CHAR(10),\"\")","v":""},null,{"$f":"IFERROR(INDEX(Veikla,SMALL(IF(Tikslas=$F$2,ROW(Veikla)-MIN(ROW(Veikla))+1),ROWS($B$3:B24)))&CHAR(10),\"\")","v":""},null,{"$f":"IFERROR(INDEX(Veikla,SMALL(IF(Tikslas=$H$2,ROW(Veikla)-MIN(ROW(Veikla))+1),ROWS($B$3:B24)))&CHAR(10),\"\")","v":""}]
[null,{"$f":"IFERROR(INDEX(Veikla,SMALL(IF(Tikslas=$B$2,ROW(Veikla)-MIN(ROW(Veikla))+1),ROWS($B$3:B25)))&\" \"&CHAR(10)&(INDEX(Rezultatas,SMALL(IF(Tikslas=$B$2,ROW(Rezultatas)-MIN(ROW(Rezultatas))+1),ROWS($B$3:B25))))&CHAR(10),\"\")","v":""},null,{"$f":"IFERROR(INDEX(Veikla,SMALL(IF(Tikslas=$D$2,ROW(Veikla)-MIN(ROW(Veikla))+1),ROWS($B$3:B25)))&CHAR(10),\"\")","v":""},null,{"$f":"IFERROR(INDEX(Veikla,SMALL(IF(Tikslas=$F$2,ROW(Veikla)-MIN(ROW(Veikla))+1),ROWS($B$3:B25)))&CHAR(10),\"\")","v":""},null,{"$f":"IFERROR(INDEX(Veikla,SMALL(IF(Tikslas=$H$2,ROW(Veikla)-MIN(ROW(Veikla))+1),ROWS($B$3:B25)))&CHAR(10),\"\")","v":""}]
[null,{"$f":"IFERROR(INDEX(Veikla,SMALL(IF(Tikslas=$B$2,ROW(Veikla)-MIN(ROW(Veikla))+1),ROWS($B$3:B26)))&\" \"&CHAR(10)&(INDEX(Rezultatas,SMALL(IF(Tikslas=$B$2,ROW(Rezultatas)-MIN(ROW(Rezultatas))+1),ROWS($B$3:B26))))&CHAR(10),\"\")","v":""},null,{"$f":"IFERROR(INDEX(Veikla,SMALL(IF(Tikslas=$D$2,ROW(Veikla)-MIN(ROW(Veikla))+1),ROWS($B$3:B26)))&CHAR(10),\"\")","v":""},null,{"$f":"IFERROR(INDEX(Veikla,SMALL(IF(Tikslas=$F$2,ROW(Veikla)-MIN(ROW(Veikla))+1),ROWS($B$3:B26)))&CHAR(10),\"\")","v":""},null,{"$f":"IFERROR(INDEX(Veikla,SMALL(IF(Tikslas=$H$2,ROW(Veikla)-MIN(ROW(Veikla))+1),ROWS($B$3:B26)))&CHAR(10),\"\")","v":""}]
[null,{"$f":"IFERROR(INDEX(Veikla,SMALL(IF(Tikslas=$B$2,ROW(Veikla)-MIN(ROW(Veikla))+1),ROWS($B$3:B27)))&\" \"&CHAR(10)&(INDEX(Rezultatas,SMALL(IF(Tikslas=$B$2,ROW(Rezultatas)-MIN(ROW(Rezultatas))+1),ROWS($B$3:B27))))&CHAR(10),\"\")","v":""},null,{"$f":"IFERROR(INDEX(Veikla,SMALL(IF(Tikslas=$D$2,ROW(Veikla)-MIN(ROW(Veikla))+1),ROWS($B$3:B27)))&CHAR(10),\"\")","v":""},null,{"$f":"IFERROR(INDEX(Veikla,SMALL(IF(Tikslas=$F$2,ROW(Veikla)-MIN(ROW(Veikla))+1),ROWS($B$3:B27)))&CHAR(10),\"\")","v":""},null,{"$f":"IFERROR(INDEX(Veikla,SMALL(IF(Tikslas=$H$2,ROW(Veikla)-MIN(ROW(Veikla))+1),ROWS($B$3:B27)))&CHAR(10),\"\")","v":""}]
[null,{"$f":"IFERROR(INDEX(Veikla,SMALL(IF(Tikslas=$B$2,ROW(Veikla)-MIN(ROW(Veikla))+1),ROWS($B$3:B28)))&\" \"&CHAR(10)&(INDEX(Rezultatas,SMALL(IF(Tikslas=$B$2,ROW(Rezultatas)-MIN(ROW(Rezultatas))+1),ROWS($B$3:B28))))&CHAR(10),\"\")","v":""},null,{"$f":"IFERROR(INDEX(Veikla,SMALL(IF(Tikslas=$D$2,ROW(Veikla)-MIN(ROW(Veikla))+1),ROWS($B$3:B28)))&CHAR(10),\"\")","v":""},null,{"$f":"IFERROR(INDEX(Veikla,SMALL(IF(Tikslas=$F$2,ROW(Veikla)-MIN(ROW(Veikla))+1),ROWS($B$3:B28)))&CHAR(10),\"\")","v":""},null,{"$f":"IFERROR(INDEX(Veikla,SMALL(IF(Tikslas=$H$2,ROW(Veikla)-MIN(ROW(Veikla))+1),ROWS($B$3:B28)))&CHAR(10),\"\")","v":""}]
[null,{"$f":"IFERROR(INDEX(Veikla,SMALL(IF(Tikslas=$B$2,ROW(Veikla)-MIN(ROW(Veikla))+1),ROWS($B$3:B29)))&\" \"&CHAR(10)&(INDEX(Rezultatas,SMALL(IF(Tikslas=$B$2,ROW(Rezultatas)-MIN(ROW(Rezultatas))+1),ROWS($B$3:B29))))&CHAR(10),\"\")","v":""},null,{"$f":"IFERROR(INDEX(Veikla,SMALL(IF(Tikslas=$D$2,ROW(Veikla)-MIN(ROW(Veikla))+1),ROWS($B$3:B29)))&CHAR(10),\"\")","v":""},null,{"$f":"IFERROR(INDEX(Veikla,SMALL(IF(Tikslas=$F$2,ROW(Veikla)-MIN(ROW(Veikla))+1),ROWS($B$3:B29)))&CHAR(10),\"\")","v":""},null,{"$f":"IFERROR(INDEX(Veikla,SMALL(IF(Tikslas=$H$2,ROW(Veikla)-MIN(ROW(Veikla))+1),ROWS($B$3:B29)))&CHAR(10),\"\")","v":""}]
[null,{"$f":"IFERROR(INDEX(Veikla,SMALL(IF(Tikslas=$B$2,ROW(Veikla)-MIN(ROW(Veikla))+1),ROWS($B$3:B30)))&\" \"&CHAR(10)&(INDEX(Rezultatas,SMALL(IF(Tikslas=$B$2,ROW(Rezultatas)-MIN(ROW(Rezultatas))+1),ROWS($B$3:B30))))&CHAR(10),\"\")","v":""},null,{"$f":"IFERROR(INDEX(Veikla,SMALL(IF(Tikslas=$D$2,ROW(Veikla)-MIN(ROW(Veikla))+1),ROWS($B$3:B30)))&CHAR(10),\"\")","v":""},null,{"$f":"IFERROR(INDEX(Veikla,SMALL(IF(Tikslas=$F$2,ROW(Veikla)-MIN(ROW(Veikla))+1),ROWS($B$3:B30)))&CHAR(10),\"\")","v":""},null,{"$f":"IFERROR(INDEX(Veikla,SMALL(IF(Tikslas=$H$2,ROW(Veikla)-MIN(ROW(Veikla))+1),ROWS($B$3:B30)))&CHAR(10),\"\")","v":""}]
[null,{"$f":"IFERROR(INDEX(Veikla,SMALL(IF(Tikslas=$B$2,ROW(Veikla)-MIN(ROW(Veikla))+1),ROWS($B$3:B31)))&\" \"&CHAR(10)&(INDEX(Rezultatas,SMALL(IF(Tikslas=$B$2,ROW(Rezultatas)-MIN(ROW(Rezultatas))+1),ROWS($B$3:B31))))&CHAR(10),\"\")","v":""},null,{"$f":"IFERROR(INDEX(Veikla,SMALL(IF(Tikslas=$D$2,ROW(Veikla)-MIN(ROW(Veikla))+1),ROWS($B$3:B31)))&CHAR(10),\"\")","v":""},null,{"$f":"IFERROR(INDEX(Veikla,SMALL(IF(Tikslas=$F$2,ROW(Veikla)-MIN(ROW(Veikla))+1),ROWS($B$3:B31)))&CHAR(10),\"\")","v":""},null,{"$f":"IFERROR(INDEX(Veikla,SMALL(IF(Tikslas=$H$2,ROW(Veikla)-MIN(ROW(Veikla))+1),ROWS($B$3:B31)))&CHAR(10),\"\")","v":""}]
[null,{"$f":"IFERROR(INDEX(Veikla,SMALL(IF(Tikslas=$B$2,ROW(Veikla)-MIN(ROW(Veikla))+1),ROWS($B$3:B32)))&\" \"&CHAR(10)&(INDEX(Rezultatas,SMALL(IF(Tikslas=$B$2,ROW(Rezultatas)-MIN(ROW(Rezultatas))+1),ROWS($B$3:B32))))&CHAR(10),\"\")","v":""},null,{"$f":"IFERROR(INDEX(Veikla,SMALL(IF(Tikslas=$D$2,ROW(Veikla)-MIN(ROW(Veikla))+1),ROWS($B$3:B32)))&CHAR(10),\"\")","v":""},null,{"$f":"IFERROR(INDEX(Veikla,SMALL(IF(Tikslas=$F$2,ROW(Veikla)-MIN(ROW(Veikla))+1),ROWS($B$3:B32)))&CHAR(10),\"\")","v":""},null,{"$f":"IFERROR(INDEX(Veikla,SMALL(IF(Tikslas=$H$2,ROW(Veikla)-MIN(ROW(Veikla))+1),ROWS($B$3:B32)))&CHAR(10),\"\")","v":""}]
[null,{"$f":"IFERROR(INDEX(Veikla,SMALL(IF(Tikslas=$B$2,ROW(Veikla)-MIN(ROW(Veikla))+1),ROWS($B$3:B33)))&\" \"&CHAR(10)&(INDEX(Rezultatas,SMALL(IF(Tikslas=$B$2,ROW(Rezultatas)-MIN(ROW(Rezultatas))+1),ROWS($B$3:B33))))&CHAR(10),\"\")","v":""},null,{"$f":"IFERROR(INDEX(Veikla,SMALL(IF(Tikslas=$D$2,ROW(Veikla)-MIN(ROW(Veikla))+1),ROWS($B$3:B33)))&CHAR(10),\"\")","v":""},null,{"$f":"IFERROR(INDEX(Veikla,SMALL(IF(Tikslas=$F$2,ROW(Veikla)-MIN(ROW(Veikla))+1),ROWS($B$3:B33)))&CHAR(10),\"\")","v":""},null,{"$f":"IFERROR(INDEX(Veikla,SMALL(IF(Tikslas=$H$2,ROW(Veikla)-MIN(ROW(Veikla))+1),ROWS($B$3:B33)))&CHAR(10),\"\")","v":""}]
[null,{"$f":"IFERROR(INDEX(Veikla,SMALL(IF(Tikslas=$B$2,ROW(Veikla)-MIN(ROW(Veikla))+1),ROWS($B$3:B34)))&\" \"&CHAR(10)&(INDEX(Rezultatas,SMALL(IF(Tikslas=$B$2,ROW(Rezultatas)-MIN(ROW(Rezultatas))+1),ROWS($B$3:B34))))&CHAR(10),\"\")","v":""},null,{"$f":"IFERROR(INDEX(Veikla,SMALL(IF(Tikslas=$D$2,ROW(Veikla)-MIN(ROW(Veikla))+1),ROWS($B$3:B34)))&CHAR(10),\"\")","v":""},null,{"$f":"IFERROR(INDEX(Veikla,SMALL(IF(Tikslas=$F$2,ROW(Veikla)-MIN(ROW(Veikla))+1),ROWS($B$3:B34)))&CHAR(10),\"\")","v":""},null,{"$f":"IFERROR(INDEX(Veikla,SMALL(IF(Tikslas=$H$2,ROW(Veikla)-MIN(ROW(Veikla))+1),ROWS($B$3:B34)))&CHAR(10),\"\")","v":""}]
[null,{"$f":"IFERROR(INDEX(Veikla,SMALL(IF(Tikslas=$B$2,ROW(Veikla)-MIN(ROW(Veikla))+1),ROWS($B$3:B35)))&\" \"&CHAR(10)&(INDEX(Rezultatas,SMALL(IF(Tikslas=$B$2,ROW(Rezultatas)-MIN(ROW(Rezultatas))+1),ROWS($B$3:B35))))&CHAR(10),\"\")","v":""},null,{"$f":"IFERROR(INDEX(Veikla,SMALL(IF(Tikslas=$D$2,ROW(Veikla)-MIN(ROW(Veikla))+1),ROWS($B$3:B35)))&CHAR(10),\"\")","v":""},null,{"$f":"IFERROR(INDEX(Veikla,SMALL(IF(Tikslas=$F$2,ROW(Veikla)-MIN(ROW(Veikla))+1),ROWS($B$3:B35)))&CHAR(10),\"\")","v":""},null,{"$f":"IFERROR(INDEX(Veikla,SMALL(IF(Tikslas=$H$2,ROW(Veikla)-MIN(ROW(Veikla))+1),ROWS($B$3:B35)))&CHAR(10),\"\")","v":""}]
[null,{"$f":"IFERROR(INDEX(Veikla,SMALL(IF(Tikslas=$B$2,ROW(Veikla)-MIN(ROW(Veikla))+1),ROWS($B$3:B36)))&\" \"&CHAR(10)&(INDEX(Rezultatas,SMALL(IF(Tikslas=$B$2,ROW(Rezultatas)-MIN(ROW(Rezultatas))+1),ROWS($B$3:B36))))&CHAR(10),\"\")","v":""},null,{"$f":"IFERROR(INDEX(Veikla,SMALL(IF(Tikslas=$D$2,ROW(Veikla)-MIN(ROW(Veikla))+1),ROWS($B$3:B36)))&CHAR(10),\"\")","v":""},null,{"$f":"IFERROR(INDEX(Veikla,SMALL(IF(Tikslas=$F$2,ROW(Veikla)-MIN(ROW(Veikla))+1),ROWS($B$3:B36)))&CHAR(10),\"\")","v":""},null,{"$f":"IFERROR(INDEX(Veikla,SMALL(IF(Tikslas=$H$2,ROW(Veikla)-MIN(ROW(Veikla))+1),ROWS($B$3:B36)))&CHAR(10),\"\")","v":""}]
[null,{"$f":"IFERROR(INDEX(Veikla,SMALL(IF(Tikslas=$B$2,ROW(Veikla)-MIN(ROW(Veikla))+1),ROWS($B$3:B37)))&\" \"&CHAR(10)&(INDEX(Rezultatas,SMALL(IF(Tikslas=$B$2,ROW(Rezultatas)-MIN(ROW(Rezultatas))+1),ROWS($B$3:B37))))&CHAR(10),\"\")","v":""},null,{"$f":"IFERROR(INDEX(Veikla,SMALL(IF(Tikslas=$D$2,ROW(Veikla)-MIN(ROW(Veikla))+1),ROWS($B$3:B37)))&CHAR(10),\"\")","v":""},null,{"$f":"IFERROR(INDEX(Veikla,SMALL(IF(Tikslas=$F$2,ROW(Veikla)-MIN(ROW(Veikla))+1),ROWS($B$3:B37)))&CHAR(10),\"\")","v":""},null,{"$f":"IFERROR(INDEX(Veikla,SMALL(IF(Tikslas=$H$2,ROW(Veikla)-MIN(ROW(Veikla))+1),ROWS($B$3:B37)))&CHAR(10),\"\")","v":""}]
[null,{"$f":"IFERROR(INDEX(Veikla,SMALL(IF(Tikslas=$B$2,ROW(Veikla)-MIN(ROW(Veikla))+1),ROWS($B$3:B38)))&\" \"&CHAR(10)&(INDEX(Rezultatas,SMALL(IF(Tikslas=$B$2,ROW(Rezultatas)-MIN(ROW(Rezultatas))+1),ROWS($B$3:B38))))&CHAR(10),\"\")","v":""},null,{"$f":"IFERROR(INDEX(Veikla,SMALL(IF(Tikslas=$D$2,ROW(Veikla)-MIN(ROW(Veikla))+1),ROWS($B$3:B38)))&CHAR(10),\"\")","v":""},null,{"$f":"IFERROR(INDEX(Veikla,SMALL(IF(Tikslas=$F$2,ROW(Veikla)-MIN(ROW(Veikla))+1),ROWS($B$3:B38)))&CHAR(10),\"\")","v":""},null,{"$f":"IFERROR(INDEX(Veikla,SMALL(IF(Tikslas=$H$2,ROW(Veikla)-MIN(ROW(Veikla))+1),ROWS($B$3:B38)))&CHAR(10),\"\")","v":""}]
[null,{"$f":"IFERROR(INDEX(Veikla,SMALL(IF(Tikslas=$B$2,ROW(Veikla)-MIN(ROW(Veikla))+1),ROWS($B$3:B39)))&\" \"&CHAR(10)&(INDEX(Rezultatas,SMALL(IF(Tikslas=$B$2,ROW(Rezultatas)-MIN(ROW(Rezultatas))+1),ROWS($B$3:B39))))&CHAR(10),\"\")","v":""},null,{"$f":"IFERROR(INDEX(Veikla,SMALL(IF(Tikslas=$D$2,ROW(Veikla)-MIN(ROW(Veikla))+1),ROWS($B$3:B39)))&CHAR(10),\"\")","v":""},null,{"$f":"IFERROR(INDEX(Veikla,SMALL(IF(Tikslas=$F$2,ROW(Veikla)-MIN(ROW(Veikla))+1),ROWS($B$3:B39)))&CHAR(10),\"\")","v":""},null,{"$f":"IFERROR(INDEX(Veikla,SMALL(IF(Tikslas=$H$2,ROW(Veikla)-MIN(ROW(Veikla))+1),ROWS($B$3:B39)))&CHAR(10),\"\")","v":""}]
[null,{"$f":"IFERROR(INDEX(Veikla,SMALL(IF(Tikslas=$B$2,ROW(Veikla)-MIN(ROW(Veikla))+1),ROWS($B$3:B40)))&\" \"&CHAR(10)&(INDEX(Rezultatas,SMALL(IF(Tikslas=$B$2,ROW(Rezultatas)-MIN(ROW(Rezultatas))+1),ROWS($B$3:B40))))&CHAR(10),\"\")","v":""},null,{"$f":"IFERROR(INDEX(Veikla,SMALL(IF(Tikslas=$D$2,ROW(Veikla)-MIN(ROW(Veikla))+1),ROWS($B$3:B40)))&CHAR(10),\"\")","v":""},null,{"$f":"IFERROR(INDEX(Veikla,SMALL(IF(Tikslas=$F$2,ROW(Veikla)-MIN(ROW(Veikla))+1),ROWS($B$3:B40)))&CHAR(10),\"\")","v":""},null,{"$f":"IFERROR(INDEX(Veikla,SMALL(IF(Tikslas=$H$2,ROW(Veikla)-MIN(ROW(Veikla))+1),ROWS($B$3:B40)))&CHAR(10),\"\")","v":""}]
[null,{"$f":"IFERROR(INDEX(Veikla,SMALL(IF(Tikslas=$B$2,ROW(Veikla)-MIN(ROW(Veikla))+1),ROWS($B$3:B41)))&\" \"&CHAR(10)&(INDEX(Rezultatas,SMALL(IF(Tikslas=$B$2,ROW(Rezultatas)-MIN(ROW(Rezultatas))+1),ROWS($B$3:B41))))&CHAR(10),\"\")","v":""},null,{"$f":"IFERROR(INDEX(Veikla,SMALL(IF(Tikslas=$D$2,ROW(Veikla)-MIN(ROW(Veikla))+1),ROWS($B$3:B41)))&CHAR(10),\"\")","v":""},null,{"$f":"IFERROR(INDEX(Veikla,SMALL(IF(Tikslas=$F$2,ROW(Veikla)-MIN(ROW(Veikla))+1),ROWS($B$3:B41)))&CHAR(10),\"\")","v":""},null,{"$f":"IFERROR(INDEX(Veikla,SMALL(IF(Tikslas=$H$2,ROW(Veikla)-MIN(ROW(Veikla))+1),ROWS($B$3:B41)))&CHAR(10),\"\")","v":""}]
[null,{"$f":"IFERROR(INDEX(Veikla,SMALL(IF(Tikslas=$B$2,ROW(Veikla)-MIN(ROW(Veikla))+1),ROWS($B$3:B42)))&\" \"&CHAR(10)&(INDEX(Rezultatas,SMALL(IF(Tikslas=$B$2,ROW(Rezultatas)-MIN(ROW(Rezultatas))+1),ROWS($B$3:B42))))&CHAR(10),\"\")","v":""},null,{"$f":"IFERROR(INDEX(Veikla,SMALL(IF(Tikslas=$D$2,ROW(Veikla)-MIN(ROW(Veikla))+1),ROWS($B$3:B42)))&CHAR(10),\"\")","v":""},null,{"$f":"IFERROR(INDEX(Veikla,SMALL(IF(Tikslas=$F$2,ROW(Veikla)-MIN(ROW(Veikla))+1),ROWS($B$3:B42)))&CHAR(10),\"\")","v":""},null,{"$f":"IFERROR(INDEX(Veikla,SMALL(IF(Tikslas=$H$2,ROW(Veikla)-MIN(ROW(Veikla))+1),ROWS($B$3:B42)))&CHAR(10),\"\")","v":""}]
[null,{"$f":"IFERROR(INDEX(Veikla,SMALL(IF(Tikslas=$B$2,ROW(Veikla)-MIN(ROW(Veikla))+1),ROWS($B$3:B43)))&\" \"&CHAR(10)&(INDEX(Rezultatas,SMALL(IF(Tikslas=$B$2,ROW(Rezultatas)-MIN(ROW(Rezultatas))+1),ROWS($B$3:B43))))&CHAR(10),\"\")","v":""},null,{"$f":"IFERROR(INDEX(Veikla,SMALL(IF(Tikslas=$D$2,ROW(Veikla)-MIN(ROW(Veikla))+1),ROWS($B$3:B43)))&CHAR(10),\"\")","v":""},null,{"$f":"IFERROR(INDEX(Veikla,SMALL(IF(Tikslas=$F$2,ROW(Veikla)-MIN(ROW(Veikla))+1),ROWS($B$3:B43)))&CHAR(10),\"\")","v":""},null,{"$f":"IFERROR(INDEX(Veikla,SMALL(IF(Tikslas=$H$2,ROW(Veikla)-MIN(ROW(Veikla))+1),ROWS($B$3:B43)))&CHAR(10),\"\")","v":""}]
[null,{"$f":"IFERROR(INDEX(Veikla,SMALL(IF(Tikslas=$B$2,ROW(Veikla)-MIN(ROW(Veikla))+1),ROWS($B$3:B44)))&\" \"&CHAR(10)&(INDEX(Rezultatas,SMALL(IF(Tikslas=$B$2,ROW(Rezultatas)-MIN(ROW(Rezultatas))+1),ROWS($B$3:B44))))&CHAR(10),\"\")","v":""},null,{"$f":"IFERROR(INDEX(Veikla,SMALL(IF(Tikslas=$D$2,ROW(Veikla)-MIN(ROW(Veikla))+1),ROWS($B$3:B44)))&CHAR(10),\"\")","v":""},null,{"$f":"IFERROR(INDEX(Veikla,SMALL(IF(Tikslas=$F$2,ROW(Veikla)-MIN(ROW(Veikla))+1),ROWS($B$3:B44)))&CHAR(10),\"\")","v":""},null,{"$f":"IFERROR(INDEX(Veikla,SMALL(IF(Tikslas=$H$2,ROW(Veikla)-MIN(ROW(Veikla))+1),ROWS($B$3:B44)))&CHAR(10),\"\")","v":""}]
[null,{"$f":"IFERROR(INDEX(Veikla,SMALL(IF(Tikslas=$B$2,ROW(Veikla)-MIN(ROW(Veikla))+1),ROWS($B$3:B45)))&\" \"&CHAR(10)&(INDEX(Rezultatas,SMALL(IF(Tikslas=$B$2,ROW(Rezultatas)-MIN(ROW(Rezultatas))+1),ROWS($B$3:B45))))&CHAR(10),\"\")","v":""},null,{"$f":"IFERROR(INDEX(Veikla,SMALL(IF(Tikslas=$D$2,ROW(Veikla)-MIN(ROW(Veikla))+1),ROWS($B$3:B45)))&CHAR(10),\"\")","v":""},null,{"$f":"IFERROR(INDEX(Veikla,SMALL(IF(Tikslas=$F$2,ROW(Veikla)-MIN(ROW(Veikla))+1),ROWS($B$3:B45)))&CHAR(10),\"\")","v":""},null,{"$f":"IFERROR(INDEX(Veikla,SMALL(IF(Tikslas=$H$2,ROW(Veikla)-MIN(ROW(Veikla))+1),ROWS($B$3:B45)))&CHAR(10),\"\")","v":""}]
[null,{"$f":"IFERROR(INDEX(Veikla,SMALL(IF(Tikslas=$B$2,ROW(Veikla)-MIN(ROW(Veikla))+1),ROWS($B$3:B46)))&\" \"&CHAR(10)&(INDEX(Rezultatas,SMALL(IF(Tikslas=$B$2,ROW(Rezultatas)-MIN(ROW(Rezultatas))+1),ROWS($B$3:B46))))&CHAR(10),\"\")","v":""},null,{"$f":"IFERROR(INDEX(Veikla,SMALL(IF(Tikslas=$D$2,ROW(Veikla)-MIN(ROW(Veikla))+1),ROWS($B$3:B46)))&CHAR(10),\"\")","v":""},null,{"$f":"IFERROR(INDEX(Veikla,SMALL(IF(Tikslas=$F$2,ROW(Veikla)-MIN(ROW(Veikla))+1),ROWS($B$3:B46)))&CHAR(10),\"\")","v":""},null,{"$f":"IFERROR(INDEX(Veikla,SMALL(IF(Tikslas=$H$2,ROW(Veikla)-MIN(ROW(Veikla))+1),ROWS($B$3:B46)))&CHAR(10),\"\")","v":""}]
[null,{"$f":"IFERROR(INDEX(Veikla,SMALL(IF(Tikslas=$B$2,ROW(Veikla)-MIN(ROW(Veikla))+1),ROWS($B$3:B47)))&\" \"&CHAR(10)&(INDEX(Rezultatas,SMALL(IF(Tikslas=$B$2,ROW(Rezultatas)-MIN(ROW(Rezultatas))+1),ROWS($B$3:B47))))&CHAR(10),\"\")","v":""},null,{"$f":"IFERROR(INDEX(Veikla,SMALL(IF(Tikslas=$D$2,ROW(Veikla)-MIN(ROW(Veikla))+1),ROWS($B$3:B47)))&CHAR(10),\"\")","v":""},null,{"$f":"IFERROR(INDEX(Veikla,SMALL(IF(Tikslas=$F$2,ROW(Veikla)-MIN(ROW(Veikla))+1),ROWS($B$3:B47)))&CHAR(10),\"\")","v":""},null,{"$f":"IFERROR(INDEX(Veikla,SMALL(IF(Tikslas=$H$2,ROW(Veikla)-MIN(ROW(Veikla))+1),ROWS($B$3:B47)))&CHAR(10),\"\")","v":""}]
[null,{"$f":"IFERROR(INDEX(Veikla,SMALL(IF(Tikslas=$B$2,ROW(Veikla)-MIN(ROW(Veikla))+1),ROWS($B$3:B48)))&\" \"&CHAR(10)&(INDEX(Rezultatas,SMALL(IF(Tikslas=$B$2,ROW(Rezultatas)-MIN(ROW(Rezultatas))+1),ROWS($B$3:B48))))&CHAR(10),\"\")","v":""},null,{"$f":"IFERROR(INDEX(Veikla,SMALL(IF(Tikslas=$D$2,ROW(Veikla)-MIN(ROW(Veikla))+1),ROWS($B$3:B48)))&CHAR(10),\"\")","v":""},null,{"$f":"IFERROR(INDEX(Veikla,SMALL(IF(Tikslas=$F$2,ROW(Veikla)-MIN(ROW(Veikla))+1),ROWS($B$3:B48)))&CHAR(10),\"\")","v":""},null,{"$f":"IFERROR(INDEX(Veikla,SMALL(IF(Tikslas=$H$2,ROW(Veikla)-MIN(ROW(Veikla))+1),ROWS($B$3:B48)))&CHAR(10),\"\")","v":""}]
[null,{"$f":"IFERROR(INDEX(Veikla,SMALL(IF(Tikslas=$B$2,ROW(Veikla)-MIN(ROW(Veikla))+1),ROWS($B$3:B49)))&\" \"&CHAR(10)&(INDEX(Rezultatas,SMALL(IF(Tikslas=$B$2,ROW(Rezultatas)-MIN(ROW(Rezultatas))+1),ROWS($B$3:B49))))&CHAR(10),\"\")","v":""},null,{"$f":"IFERROR(INDEX(Veikla,SMALL(IF(Tikslas=$D$2,ROW(Veikla)-MIN(ROW(Veikla))+1),ROWS($B$3:B49)))&CHAR(10),\"\")","v":""},null,{"$f":"IFERROR(INDEX(Veikla,SMALL(IF(Tikslas=$F$2,ROW(Veikla)-MIN(ROW(Veikla))+1),ROWS($B$3:B49)))&CHAR(10),\"\")","v":""},null,{"$f":"IFERROR(INDEX(Veikla,SMALL(IF(Tikslas=$H$2,ROW(Veikla)-MIN(ROW(Veikla))+1),ROWS($B$3:B49)))&CHAR(10),\"\")","v":""}]
[null,{"$f":"IFERROR(INDEX(Veikla,SMALL(IF(Tikslas=$B$2,ROW(Veikla)-MIN(ROW(Veikla))+1),ROWS($B$3:B50)))&\" \"&CHAR(10)&(INDEX(Rezultatas,SMALL(IF(Tikslas=$B$2,ROW(Rezultatas)-MIN(ROW(Rezultatas))+1),ROWS($B$3:B50))))&CHAR(10),\"\")","v":""},null,{"$f":"IFERROR(INDEX(Veikla,SMALL(IF(Tikslas=$D$2,ROW(Veikla)-MIN(ROW(Veikla))+1),ROWS($B$3:B50)))&CHAR(10),\"\")","v":""},null,{"$f":"IFERROR(INDEX(Veikla,SMALL(IF(Tikslas=$F$2,ROW(Veikla)-MIN(ROW(Veikla))+1),ROWS($B$3:B50)))&CHAR(10),\"\")","v":""},null,{"$f":"IFERROR(INDEX(Veikla,SMALL(IF(Tikslas=$H$2,ROW(Veikla)-MIN(ROW(Veikla))+1),ROWS($B$3:B50)))&CHAR(10),\"\")","v":""}]
[null,{"$f":"IFERROR(INDEX(Veikla,SMALL(IF(Tikslas=$B$2,ROW(Veikla)-MIN(ROW(Veikla))+1),ROWS($B$3:B51)))&\" \"&CHAR(10)&(INDEX(Rezultatas,SMALL(IF(Tikslas=$B$2,ROW(Rezultatas)-MIN(ROW(Rezultatas))+1),ROWS($B$3:B51))))&CHAR(10),\"\")","v":""},null,{"$f":"IFERROR(INDEX(Veikla,SMALL(IF(Tikslas=$D$2,ROW(Veikla)-MIN(ROW(Veikla))+1),ROWS($B$3:B51)))&CHAR(10),\"\")","v":""},null,{"$f":"IFERROR(INDEX(Veikla,SMALL(IF(Tikslas=$F$2,ROW(Veikla)-MIN(ROW(Veikla))+1),ROWS($B$3:B51)))&CHAR(10),\"\")","v":""},null,{"$f":"IFERROR(INDEX(Veikla,SMALL(IF(Tikslas=$H$2,ROW(Veikla)-MIN(ROW(Veikla))+1),ROWS($B$3:B51)))&CHAR(10),\"\")","v":""}]
[null,{"$f":"IFERROR(INDEX(Veikla,SMALL(IF(Tikslas=$B$2,ROW(Veikla)-MIN(ROW(Veikla))+1),ROWS($B$3:B52)))&\" \"&CHAR(10)&(INDEX(Rezultatas,SMALL(IF(Tikslas=$B$2,ROW(Rezultatas)-MIN(ROW(Rezultatas))+1),ROWS($B$3:B52))))&CHAR(10),\"\")","v":""},null,{"$f":"IFERROR(INDEX(Veikla,SMALL(IF(Tikslas=$D$2,ROW(Veikla)-MIN(ROW(Veikla))+1),ROWS($B$3:B52)))&CHAR(10),\"\")","v":""},null,{"$f":"IFERROR(INDEX(Veikla,SMALL(IF(Tikslas=$F$2,ROW(Veikla)-MIN(ROW(Veikla))+1),ROWS($B$3:B52)))&CHAR(10),\"\")","v":""},null,{"$f":"IFERROR(INDEX(Veikla,SMALL(IF(Tikslas=$H$2,ROW(Veikla)-MIN(ROW(Veikla))+1),ROWS($B$3:B52)))&CHAR(10),\"\")","v":""}]
[null,{"$f":"IFERROR(INDEX(Veikla,SMALL(IF(Tikslas=$B$2,ROW(Veikla)-MIN(ROW(Veikla))+1),ROWS($B$3:B53)))&\" \"&CHAR(10)&(INDEX(Rezultatas,SMALL(IF(Tikslas=$B$2,ROW(Rezultatas)-MIN(ROW(Rezultatas))+1),ROWS($B$3:B53))))&CHAR(10),\"\")","v":""},null,{"$f":"IFERROR(INDEX(Veikla,SMALL(IF(Tikslas=$D$2,ROW(Veikla)-MIN(ROW(Veikla))+1),ROWS($B$3:B53)))&CHAR(10),\"\")","v":""},null,{"$f":"IFERROR(INDEX(Veikla,SMALL(IF(Tikslas=$F$2,ROW(Veikla)-MIN(ROW(Veikla))+1),ROWS($B$3:B53)))&CHAR(10),\"\")","v":""},null,{"$f":"IFERROR(INDEX(Veikla,SMALL(IF(Tikslas=$H$2,ROW(Veikla)-MIN(ROW(Veikla))+1),ROWS($B$3:B53)))&CHAR(10),\"\")","v":""}]
[null,{"$f":"IFERROR(INDEX(Veikla,SMALL(IF(Tikslas=$B$2,ROW(Veikla)-MIN(ROW(Veikla))+1),ROWS($B$3:B54)))&\" \"&CHAR(10)&(INDEX(Rezultatas,SMALL(IF(Tikslas=$B$2,ROW(Rezultatas)-MIN(ROW(Rezultatas))+1),ROWS($B$3:B54))))&CHAR(10),\"\")","v":""},null,{"$f":"IFERROR(INDEX(Veikla,SMALL(IF(Tikslas=$D$2,ROW(Veikla)-MIN(ROW(Veikla))+1),ROWS($B$3:B54)))&CHAR(10),\"\")","v":""},null,{"$f":"IFERROR(INDEX(Veikla,SMALL(IF(Tikslas=$F$2,ROW(Veikla)-MIN(ROW(Veikla))+1),ROWS($B$3:B54)))&CHAR(10),\"\")","v":""},null,{"$f":"IFERROR(INDEX(Veikla,SMALL(IF(Tikslas=$H$2,ROW(Veikla)-MIN(ROW(Veikla))+1),ROWS($B$3:B54)))&CHAR(10),\"\")","v":""}]
[null,{"$f":"IFERROR(INDEX(Veikla,SMALL(IF(Tikslas=$B$2,ROW(Veikla)-MIN(ROW(Veikla))+1),ROWS($B$3:B55)))&\" \"&CHAR(10)&(INDEX(Rezultatas,SMALL(IF(Tikslas=$B$2,ROW(Rezultatas)-MIN(ROW(Rezultatas))+1),ROWS($B$3:B55))))&CHAR(10),\"\")","v":""},null,{"$f":"IFERROR(INDEX(Veikla,SMALL(IF(Tikslas=$D$2,ROW(Veikla)-MIN(ROW(Veikla))+1),ROWS($B$3:B55)))&CHAR(10),\"\")","v":""},null,{"$f":"IFERROR(INDEX(Veikla,SMALL(IF(Tikslas=$F$2,ROW(Veikla)-MIN(ROW(Veikla))+1),ROWS($B$3:B55)))&CHAR(10),\"\")","v":""},null,{"$f":"IFERROR(INDEX(Veikla,SMALL(IF(Tikslas=$H$2,ROW(Veikla)-MIN(ROW(Veikla))+1),ROWS($B$3:B55)))&CHAR(10),\"\")","v":""}]
[null,{"$f":"IFERROR(INDEX(Veikla,SMALL(IF(Tikslas=$B$2,ROW(Veikla)-MIN(ROW(Veikla))+1),ROWS($B$3:B56)))&\" \"&CHAR(10)&(INDEX(Rezultatas,SMALL(IF(Tikslas=$B$2,ROW(Rezultatas)-MIN(ROW(Rezultatas))+1),ROWS($B$3:B56))))&CHAR(10),\"\")","v":""},null,{"$f":"IFERROR(INDEX(Veikla,SMALL(IF(Tikslas=$D$2,ROW(Veikla)-MIN(ROW(Veikla))+1),ROWS($B$3:B56)))&CHAR(10),\"\")","v":""},null,{"$f":"IFERROR(INDEX(Veikla,SMALL(IF(Tikslas=$F$2,ROW(Veikla)-MIN(ROW(Veikla))+1),ROWS($B$3:B56)))&CHAR(10),\"\")","v":""},null,{"$f":"IFERROR(INDEX(Veikla,SMALL(IF(Tikslas=$H$2,ROW(Veikla)-MIN(ROW(Veikla))+1),ROWS($B$3:B56)))&CHAR(10),\"\")","v":""}]
[null,{"$f":"IFERROR(INDEX(Veikla,SMALL(IF(Tikslas=$B$2,ROW(Veikla)-MIN(ROW(Veikla))+1),ROWS($B$3:B57)))&\" \"&CHAR(10)&(INDEX(Rezultatas,SMALL(IF(Tikslas=$B$2,ROW(Rezultatas)-MIN(ROW(Rezultatas))+1),ROWS($B$3:B57))))&CHAR(10),\"\")","v":""},null,{"$f":"IFERROR(INDEX(Veikla,SMALL(IF(Tikslas=$D$2,ROW(Veikla)-MIN(ROW(Veikla))+1),ROWS($B$3:B57)))&CHAR(10),\"\")","v":""},null,{"$f":"IFERROR(INDEX(Veikla,SMALL(IF(Tikslas=$F$2,ROW(Veikla)-MIN(ROW(Veikla))+1),ROWS($B$3:B57)))&CHAR(10),\"\")","v":""},null,{"$f":"IFERROR(INDEX(Veikla,SMALL(IF(Tikslas=$H$2,ROW(Veikla)-MIN(ROW(Veikla))+1),ROWS($B$3:B57)))&CHAR(10),\"\")","v":""}]
[null,{"$f":"IFERROR(INDEX(Veikla,SMALL(IF(Tikslas=$B$2,ROW(Veikla)-MIN(ROW(Veikla))+1),ROWS($B$3:B58)))&\" \"&CHAR(10)&(INDEX(Rezultatas,SMALL(IF(Tikslas=$B$2,ROW(Rezultatas)-MIN(ROW(Rezultatas))+1),ROWS($B$3:B58))))&CHAR(10),\"\")","v":""},null,{"$f":"IFERROR(INDEX(Veikla,SMALL(IF(Tikslas=$D$2,ROW(Veikla)-MIN(ROW(Veikla))+1),ROWS($B$3:B58)))&CHAR(10),\"\")","v":""},null,{"$f":"IFERROR(INDEX(Veikla,SMALL(IF(Tikslas=$F$2,ROW(Veikla)-MIN(ROW(Veikla))+1),ROWS($B$3:B58)))&CHAR(10),\"\")","v":""},null,{"$f":"IFERROR(INDEX(Veikla,SMALL(IF(Tikslas=$H$2,ROW(Veikla)-MIN(ROW(Veikla))+1),ROWS($B$3:B58)))&CHAR(10),\"\")","v":""}]
[null,{"$f":"IFERROR(INDEX(Veikla,SMALL(IF(Tikslas=$B$2,ROW(Veikla)-MIN(ROW(Veikla))+1),ROWS($B$3:B59)))&\" \"&CHAR(10)&(INDEX(Rezultatas,SMALL(IF(Tikslas=$B$2,ROW(Rezultatas)-MIN(ROW(Rezultatas))+1),ROWS($B$3:B59))))&CHAR(10),\"\")","v":""},null,{"$f":"IFERROR(INDEX(Veikla,SMALL(IF(Tikslas=$D$2,ROW(Veikla)-MIN(ROW(Veikla))+1),ROWS($B$3:B59)))&CHAR(10),\"\")","v":""},null,{"$f":"IFERROR(INDEX(Veikla,SMALL(IF(Tikslas=$F$2,ROW(Veikla)-MIN(ROW(Veikla))+1),ROWS($B$3:B59)))&CHAR(10),\"\")","v":""},null,{"$f":"IFERROR(INDEX(Veikla,SMALL(IF(Tikslas=$H$2,ROW(Veikla)-MIN(ROW(Veikla))+1),ROWS($B$3:B59)))&CHAR(10),\"\")","v":""}]
[null,{"$f":"IFERROR(INDEX(Veikla,SMALL(IF(Tikslas=$B$2,ROW(Veikla)-MIN(ROW(Veikla))+1),ROWS($B$3:B60)))&\" \"&CHAR(10)&(INDEX(Rezultatas,SMALL(IF(Tikslas=$B$2,ROW(Rezultatas)-MIN(ROW(Rezultatas))+1),ROWS($B$3:B60))))&CHAR(10),\"\")","v":""},null,{"$f":"IFERROR(INDEX(Veikla,SMALL(IF(Tikslas=$D$2,ROW(Veikla)-MIN(ROW(Veikla))+1),ROWS($B$3:B60)))&CHAR(10),\"\")","v":""},null,{"$f":"IFERROR(INDEX(Veikla,SMALL(IF(Tikslas=$F$2,ROW(Veikla)-MIN(ROW(Veikla))+1),ROWS($B$3:B60)))&CHAR(10),\"\")","v":""},null,{"$f":"IFERROR(INDEX(Veikla,SMALL(IF(Tikslas=$H$2,ROW(Veikla)-MIN(ROW(Veikla))+1),ROWS($B$3:B60)))&CHAR(10),\"\")","v":""}]
[null,{"$f":"IFERROR(INDEX(Veikla,SMALL(IF(Tikslas=$B$2,ROW(Veikla)-MIN(ROW(Veikla))+1),ROWS($B$3:B61)))&\" \"&CHAR(10)&(INDEX(Rezultatas,SMALL(IF(Tikslas=$B$2,ROW(Rezultatas)-MIN(ROW(Rezultatas))+1),ROWS($B$3:B61))))&CHAR(10),\"\")","v":""},null,{"$f":"IFERROR(INDEX(Veikla,SMALL(IF(Tikslas=$D$2,ROW(Veikla)-MIN(ROW(Veikla))+1),ROWS($B$3:B61)))&CHAR(10),\"\")","v":""},null,{"$f":"IFERROR(INDEX(Veikla,SMALL(IF(Tikslas=$F$2,ROW(Veikla)-MIN(ROW(Veikla))+1),ROWS($B$3:B61)))&CHAR(10),\"\")","v":""},null,{"$f":"IFERROR(INDEX(Veikla,SMALL(IF(Tikslas=$H$2,ROW(Veikla)-MIN(ROW(Veikla))+1),ROWS($B$3:B61)))&CHAR(10),\"\")","v":""}]
[null,{"$f":"IFERROR(INDEX(Veikla,SMALL(IF(Tikslas=$B$2,ROW(Veikla)-MIN(ROW(Veikla))+1),ROWS($B$3:B62)))&\" \"&CHAR(10)&(INDEX(Rezultatas,SMALL(IF(Tikslas=$B$2,ROW(Rezultatas)-MIN(ROW(Rezultatas))+1),ROWS($B$3:B62))))&CHAR(10),\"\")","v":""},null,{"$f":"IFERROR(INDEX(Veikla,SMALL(IF(Tikslas=$D$2,ROW(Veikla)-MIN(ROW(Veikla))+1),ROWS($B$3:B62)))&CHAR(10),\"\")","v":""},null,{"$f":"IFERROR(INDEX(Veikla,SMALL(IF(Tikslas=$F$2,ROW(Veikla)-MIN(ROW(Veikla))+1),ROWS($B$3:B62)))&CHAR(10),\"\")","v":""},null,{"$f":"IFERROR(INDEX(Veikla,SMALL(IF(Tikslas=$H$2,ROW(Veikla)-MIN(ROW(Veikla))+1),ROWS($B$3:B62)))&CHAR(10),\"\")","v":""}]
[null,{"$f":"IFERROR(INDEX(Veikla,SMALL(IF(Tikslas=$B$2,ROW(Veikla)-MIN(ROW(Veikla))+1),ROWS($B$3:B63)))&\" \"&CHAR(10)&(INDEX(Rezultatas,SMALL(IF(Tikslas=$B$2,ROW(Rezultatas)-MIN(ROW(Rezultatas))+1),ROWS($B$3:B63))))&CHAR(10),\"\")","v":""},null,{"$f":"IFERROR(INDEX(Veikla,SMALL(IF(Tikslas=$D$2,ROW(Veikla)-MIN(ROW(Veikla))+1),ROWS($B$3:B63)))&CHAR(10),\"\")","v":""},null,{"$f":"IFERROR(INDEX(Veikla,SMALL(IF(Tikslas=$F$2,ROW(Veikla)-MIN(ROW(Veikla))+1),ROWS($B$3:B63)))&CHAR(10),\"\")","v":""},null,{"$f":"IFERROR(INDEX(Veikla,SMALL(IF(Tikslas=$H$2,ROW(Veikla)-MIN(ROW(Veikla))+1),ROWS($B$3:B63)))&CHAR(10),\"\")","v":""}]
[null,{"$f":"IFERROR(INDEX(Veikla,SMALL(IF(Tikslas=$B$2,ROW(Veikla)-MIN(ROW(Veikla))+1),ROWS($B$3:B64)))&\" \"&CHAR(10)&(INDEX(Rezultatas,SMALL(IF(Tikslas=$B$2,ROW(Rezultatas)-MIN(ROW(Rezultatas))+1),ROWS($B$3:B64))))&CHAR(10),\"\")","v":""},null,{"$f":"IFERROR(INDEX(Veikla,SMALL(IF(Tikslas=$D$2,ROW(Veikla)-MIN(ROW(Veikla))+1),ROWS($B$3:B64)))&CHAR(10),\"\")","v":""},null,{"$f":"IFERROR(INDEX(Veikla,SMALL(IF(Tikslas=$F$2,ROW(Veikla)-MIN(ROW(Veikla))+1),ROWS($B$3:B64)))&CHAR(10),\"\")","v":""},null,{"$f":"IFERROR(INDEX(Veikla,SMALL(IF(Tikslas=$H$2,ROW(Veikla)-MIN(ROW(Veikla))+1),ROWS($B$3:B64)))&CHAR(10),\"\")","v":""}]
[null,{"$f":"IFERROR(INDEX(Veikla,SMALL(IF(Tikslas=$B$2,ROW(Veikla)-MIN(ROW(Veikla))+1),ROWS($B$3:B65)))&\" \"&CHAR(10)&(INDEX(Rezultatas,SMALL(IF(Tikslas=$B$2,ROW(Rezultatas)-MIN(ROW(Rezultatas))+1),ROWS($B$3:B65))))&CHAR(10),\"\")","v":""},null,{"$f":"IFERROR(INDEX(Veikla,SMALL(IF(Tikslas=$D$2,ROW(Veikla)-MIN(ROW(Veikla))+1),ROWS($B$3:B65)))&CHAR(10),\"\")","v":""},null,{"$f":"IFERROR(INDEX(Veikla,SMALL(IF(Tikslas=$F$2,ROW(Veikla)-MIN(ROW(Veikla))+1),ROWS($B$3:B65)))&CHAR(10),\"\")","v":""},null,{"$f":"IFERROR(INDEX(Veikla,SMALL(IF(Tikslas=$H$2,ROW(Veikla)-MIN(ROW(Veikla))+1),ROWS($B$3:B65)))&CHAR(10),\"\")","v":""}]
[null,{"$f":"IFERROR(INDEX(Veikla,SMALL(IF(Tikslas=$B$2,ROW(Veikla)-MIN(ROW(Veikla))+1),ROWS($B$3:B66)))&\" \"&CHAR(10)&(INDEX(Rezultatas,SMALL(IF(Tikslas=$B$2,ROW(Rezultatas)-MIN(ROW(Rezultatas))+1),ROWS($B$3:B66))))&CHAR(10),\"\")","v":""},null,{"$f":"IFERROR(INDEX(Veikla,SMALL(IF(Tikslas=$D$2,ROW(Veikla)-MIN(ROW(Veikla))+1),ROWS($B$3:B66)))&CHAR(10),\"\")","v":""},null,{"$f":"IFERROR(INDEX(Veikla,SMALL(IF(Tikslas=$F$2,ROW(Veikla)-MIN(ROW(Veikla))+1),ROWS($B$3:B66)))&CHAR(10),\"\")","v":""},null,{"$f":"IFERROR(INDEX(Veikla,SMALL(IF(Tikslas=$H$2,ROW(Veikla)-MIN(ROW(Veikla))+1),ROWS($B$3:B66)))&CHAR(10),\"\")","v":""}]
[null,{"$f":"IFERROR(INDEX(Veikla,SMALL(IF(Tikslas=$B$2,ROW(Veikla)-MIN(ROW(Veikla))+1),ROWS($B$3:B67)))&\" \"&CHAR(10)&(INDEX(Rezultatas,SMALL(IF(Tikslas=$B$2,ROW(Rezultatas)-MIN(ROW(Rezultatas))+1),ROWS($B$3:B67))))&CHAR(10),\"\")","v":""},null,{"$f":"IFERROR(INDEX(Veikla,SMALL(IF(Tikslas=$D$2,ROW(Veikla)-MIN(ROW(Veikla))+1),ROWS($B$3:B67)))&CHAR(10),\"\")","v":""},null,{"$f":"IFERROR(INDEX(Veikla,SMALL(IF(Tikslas=$F$2,ROW(Veikla)-MIN(ROW(Veikla))+1),ROWS($B$3:B67)))&CHAR(10),\"\")","v":""},null,{"$f":"IFERROR(INDEX(Veikla,SMALL(IF(Tikslas=$H$2,ROW(Veikla)-MIN(ROW(Veikla))+1),ROWS($B$3:B67)))&CHAR(10),\"\")","v":""}]
[null,{"$f":"IFERROR(INDEX(Veikla,SMALL(IF(Tikslas=$B$2,ROW(Veikla)-MIN(ROW(Veikla))+1),ROWS($B$3:B68)))&\" \"&CHAR(10)&(INDEX(Rezultatas,SMALL(IF(Tikslas=$B$2,ROW(Rezultatas)-MIN(ROW(Rezultatas))+1),ROWS($B$3:B68))))&CHAR(10),\"\")","v":""},null,{"$f":"IFERROR(INDEX(Veikla,SMALL(IF(Tikslas=$D$2,ROW(Veikla)-MIN(ROW(Veikla))+1),ROWS($B$3:B68)))&CHAR(10),\"\")","v":""},null,{"$f":"IFERROR(INDEX(Veikla,SMALL(IF(Tikslas=$F$2,ROW(Veikla)-MIN(ROW(Veikla))+1),ROWS($B$3:B68)))&CHAR(10),\"\")","v":""},null,{"$f":"IFERROR(INDEX(Veikla,SMALL(IF(Tikslas=$H$2,ROW(Veikla)-MIN(ROW(Veikla))+1),ROWS($B$3:B68)))&CHAR(10),\"\")","v":""}]
[null,{"$f":"IFERROR(INDEX(Veikla,SMALL(IF(Tikslas=$B$2,ROW(Veikla)-MIN(ROW(Veikla))+1),ROWS($B$3:B69)))&\" \"&CHAR(10)&(INDEX(Rezultatas,SMALL(IF(Tikslas=$B$2,ROW(Rezultatas)-MIN(ROW(Rezultatas))+1),ROWS($B$3:B69))))&CHAR(10),\"\")","v":""},null,{"$f":"IFERROR(INDEX(Veikla,SMALL(IF(Tikslas=$D$2,ROW(Veikla)-MIN(ROW(Veikla))+1),ROWS($B$3:B69)))&CHAR(10),\"\")","v":""},null,{"$f":"IFERROR(INDEX(Veikla,SMALL(IF(Tikslas=$F$2,ROW(Veikla)-MIN(ROW(Veikla))+1),ROWS($B$3:B69)))&CHAR(10),\"\")","v":""},null,{"$f":"IFERROR(INDEX(Veikla,SMALL(IF(Tikslas=$H$2,ROW(Veikla)-MIN(ROW(Veikla))+1),ROWS($B$3:B69)))&CHAR(10),\"\")","v":""}]
[null,{"$f":"IFERROR(INDEX(Veikla,SMALL(IF(Tikslas=$B$2,ROW(Veikla)-MIN(ROW(Veikla))+1),ROWS($B$3:B70)))&\" \"&CHAR(10)&(INDEX(Rezultatas,SMALL(IF(Tikslas=$B$2,ROW(Rezultatas)-MIN(ROW(Rezultatas))+1),ROWS($B$3:B70))))&CHAR(10),\"\")","v":""},null,{"$f":"IFERROR(INDEX(Veikla,SMALL(IF(Tikslas=$D$2,ROW(Veikla)-MIN(ROW(Veikla))+1),ROWS($B$3:B70)))&CHAR(10),\"\")","v":""},null,{"$f":"IFERROR(INDEX(Veikla,SMALL(IF(Tikslas=$F$2,ROW(Veikla)-MIN(ROW(Veikla))+1),ROWS($B$3:B70)))&CHAR(10),\"\")","v":""},null,{"$f":"IFERROR(INDEX(Veikla,SMALL(IF(Tikslas=$H$2,ROW(Veikla)-MIN(ROW(Veikla))+1),ROWS($B$3:B70)))&CHAR(10),\"\")","v":""}]
[null,{"$f":"IFERROR(INDEX(Veikla,SMALL(IF(Tikslas=$B$2,ROW(Veikla)-MIN(ROW(Veikla))+1),ROWS($B$3:B71)))&\" \"&CHAR(10)&(INDEX(Rezultatas,SMALL(IF(Tikslas=$B$2,ROW(Rezultatas)-MIN(ROW(Rezultatas))+1),ROWS($B$3:B71))))&CHAR(10),\"\")","v":""},null,{"$f":"IFERROR(INDEX(Veikla,SMALL(IF(Tikslas=$D$2,ROW(Veikla)-MIN(ROW(Veikla))+1),ROWS($B$3:B71)))&CHAR(10),\"\")","v":""},null,{"$f":"IFERROR(INDEX(Veikla,SMALL(IF(Tikslas=$F$2,ROW(Veikla)-MIN(ROW(Veikla))+1),ROWS($B$3:B71)))&CHAR(10),\"\")","v":""},null,{"$f":"IFERROR(INDEX(Veikla,SMALL(IF(Tikslas=$H$2,ROW(Veikla)-MIN(ROW(Veikla))+1),ROWS($B$3:B71)))&CHAR(10),\"\")","v":""}]
[null,{"$f":"IFERROR(INDEX(Veikla,SMALL(IF(Tikslas=$B$2,ROW(Veikla)-MIN(ROW(Veikla))+1),ROWS($B$3:B72)))&\" \"&CHAR(10)&(INDEX(Rezultatas,SMALL(IF(Tikslas=$B$2,ROW(Rezultatas)-MIN(ROW(Rezultatas))+1),ROWS($B$3:B72))))&CHAR(10),\"\")","v":""},null,{"$f":"IFERROR(INDEX(Veikla,SMALL(IF(Tikslas=$D$2,ROW(Veikla)-MIN(ROW(Veikla))+1),ROWS($B$3:B72)))&CHAR(10),\"\")","v":""},null,{"$f":"IFERROR(INDEX(Veikla,SMALL(IF(Tikslas=$F$2,ROW(Veikla)-MIN(ROW(Veikla))+1),ROWS($B$3:B72)))&CHAR(10),\"\")","v":""},null,{"$f":"IFERROR(INDEX(Veikla,SMALL(IF(Tikslas=$H$2,ROW(Veikla)-MIN(ROW(Veikla))+1),ROWS($B$3:B72)))&CHAR(10),\"\")","v":""}]
[null,{"$f":"IFERROR(INDEX(Veikla,SMALL(IF(Tikslas=$B$2,ROW(Veikla)-MIN(ROW(Veikla))+1),ROWS($B$3:B73)))&\" \"&CHAR(10)&(INDEX(Rezultatas,SMALL(IF(Tikslas=$B$2,ROW(Rezultatas)-MIN(ROW(Rezultatas))+1),ROWS($B$3:B73))))&CHAR(10),\"\")","v":""},null,{"$f":"IFERROR(INDEX(Veikla,SMALL(IF(Tikslas=$D$2,ROW(Veikla)-MIN(ROW(Veikla))+1),ROWS($B$3:B73)))&CHAR(10),\"\")","v":""},null,{"$f":"IFERROR(INDEX(Veikla,SMALL(IF(Tikslas=$F$2,ROW(Veikla)-MIN(ROW(Veikla))+1),ROWS($B$3:B73)))&CHAR(10),\"\")","v":""},null,{"$f":"IFERROR(INDEX(Veikla,SMALL(IF(Tikslas=$H$2,ROW(Veikla)-MIN(ROW(Veikla))+1),ROWS($B$3:B73)))&CHAR(10),\"\")","v":""}]
[null,{"$f":"IFERROR(INDEX(Veikla,SMALL(IF(Tikslas=$B$2,ROW(Veikla)-MIN(ROW(Veikla))+1),ROWS($B$3:B74)))&\" \"&CHAR(10)&(INDEX(Rezultatas,SMALL(IF(Tikslas=$B$2,ROW(Rezultatas)-MIN(ROW(Rezultatas))+1),ROWS($B$3:B74))))&CHAR(10),\"\")","v":""},null,{"$f":"IFERROR(INDEX(Veikla,SMALL(IF(Tikslas=$D$2,ROW(Veikla)-MIN(ROW(Veikla))+1),ROWS($B$3:B74)))&CHAR(10),\"\")","v":""},null,{"$f":"IFERROR(INDEX(Veikla,SMALL(IF(Tikslas=$F$2,ROW(Veikla)-MIN(ROW(Veikla))+1),ROWS($B$3:B74)))&CHAR(10),\"\")","v":""},null,{"$f":"IFERROR(INDEX(Veikla,SMALL(IF(Tikslas=$H$2,ROW(Veikla)-MIN(ROW(Veikla))+1),ROWS($B$3:B74)))&CHAR(10),\"\")","v":""}]
[null,{"$f":"IFERROR(INDEX(Veikla,SMALL(IF(Tikslas=$B$2,ROW(Veikla)-MIN(ROW(Veikla))+1),ROWS($B$3:B75)))&\" \"&CHAR(10)&(INDEX(Rezultatas,SMALL(IF(Tikslas=$B$2,ROW(Rezultatas)-MIN(ROW(Rezultatas))+1),ROWS($B$3:B75))))&CHAR(10),\"\")","v":""},null,{"$f":"IFERROR(INDEX(Veikla,SMALL(IF(Tikslas=$D$2,ROW(Veikla)-MIN(ROW(Veikla))+1),ROWS($B$3:B75)))&CHAR(10),\"\")","v":""},null,{"$f":"IFERROR(INDEX(Veikla,SMALL(IF(Tikslas=$F$2,ROW(Veikla)-MIN(ROW(Veikla))+1),ROWS($B$3:B75)))&CHAR(10),\"\")","v":""},null,{"$f":"IFERROR(INDEX(Veikla,SMALL(IF(Tikslas=$H$2,ROW(Veikla)-MIN(ROW(Veikla))+1),ROWS($B$3:B75)))&CHAR(10),\"\")","v":""}]
[null,{"$f":"IFERROR(INDEX(Veikla,SMALL(IF(Tikslas=$B$2,ROW(Veikla)-MIN(ROW(Veikla))+1),ROWS($B$3:B76)))&\" \"&CHAR(10)&(INDEX(Rezultatas,SMALL(IF(Tikslas=$B$2,ROW(Rezultatas)-MIN(ROW(Rezultatas))+1),ROWS($B$3:B76))))&CHAR(10),\"\")","v":""},null,{"$f":"IFERROR(INDEX(Veikla,SMALL(IF(Tikslas=$D$2,ROW(Veikla)-MIN(ROW(Veikla))+1),ROWS($B$3:B76)))&CHAR(10),\"\")","v":""},null,{"$f":"IFERROR(INDEX(Veikla,SMALL(IF(Tikslas=$F$2,ROW(Veikla)-MIN(ROW(Veikla))+1),ROWS($B$3:B76)))&CHAR(10),\"\")","v":""},null,{"$f":"IFERROR(INDEX(Veikla,SMALL(IF(Tikslas=$H$2,ROW(Veikla)-MIN(ROW(Veikla))+1),ROWS($B$3:B76)))&CHAR(10),\"\")","v":""}]
[null,{"$f":"IFERROR(INDEX(Veikla,SMALL(IF(Tikslas=$B$2,ROW(Veikla)-MIN(ROW(Veikla))+1),ROWS($B$3:B77)))&\" \"&CHAR(10)&(INDEX(Rezultatas,SMALL(IF(Tikslas=$B$2,ROW(Rezultatas)-MIN(ROW(Rezultatas))+1),ROWS($B$3:B77))))&CHAR(10),\"\")","v":""},null,{"$f":"IFERROR(INDEX(Veikla,SMALL(IF(Tikslas=$D$2,ROW(Veikla)-MIN(ROW(Veikla))+1),ROWS($B$3:B77)))&CHAR(10),\"\")","v":""},null,{"$f":"IFERROR(INDEX(Veikla,SMALL(IF(Tikslas=$F$2,ROW(Veikla)-MIN(ROW(Veikla))+1),ROWS($B$3:B77)))&CHAR(10),\"\")","v":""},null,{"$f":"IFERROR(INDEX(Veikla,SMALL(IF(Tikslas=$H$2,ROW(Veikla)-MIN(ROW(Veikla))+1),ROWS($B$3:B77)))&CHAR(10),\"\")","v":""}]
[null,{"$f":"IFERROR(INDEX(Veikla,SMALL(IF(Tikslas=$B$2,ROW(Veikla)-MIN(ROW(Veikla))+1),ROWS($B$3:B78)))&\" \"&CHAR(10)&(INDEX(Rezultatas,SMALL(IF(Tikslas=$B$2,ROW(Rezultatas)-MIN(ROW(Rezultatas))+1),ROWS($B$3:B78))))&CHAR(10),\"\")","v":""},null,{"$f":"IFERROR(INDEX(Veikla,SMALL(IF(Tikslas=$D$2,ROW(Veikla)-MIN(ROW(Veikla))+1),ROWS($B$3:B78)))&CHAR(10),\"\")","v":""},null,{"$f":"IFERROR(INDEX(Veikla,SMALL(IF(Tikslas=$F$2,ROW(Veikla)-MIN(ROW(Veikla))+1),ROWS($B$3:B78)))&CHAR(10),\"\")","v":""},null,{"$f":"IFERROR(INDEX(Veikla,SMALL(IF(Tikslas=$H$2,ROW(Veikla)-MIN(ROW(Veikla))+1),ROWS($B$3:B78)))&CHAR(10),\"\")","v":""}]
[null,{"$f":"IFERROR(INDEX(Veikla,SMALL(IF(Tikslas=$B$2,ROW(Veikla)-MIN(ROW(Veikla))+1),ROWS($B$3:B79)))&\" \"&CHAR(10)&(INDEX(Rezultatas,SMALL(IF(Tikslas=$B$2,ROW(Rezultatas)-MIN(ROW(Rezultatas))+1),ROWS($B$3:B79))))&CHAR(10),\"\")","v":""},null,{"$f":"IFERROR(INDEX(Veikla,SMALL(IF(Tikslas=$D$2,ROW(Veikla)-MIN(ROW(Veikla))+1),ROWS($B$3:B79)))&CHAR(10),\"\")","v":""},null,{"$f":"IFERROR(INDEX(Veikla,SMALL(IF(Tikslas=$F$2,ROW(Veikla)-MIN(ROW(Veikla))+1),ROWS($B$3:B79)))&CHAR(10),\"\")","v":""},null,{"$f":"IFERROR(INDEX(Veikla,SMALL(IF(Tikslas=$H$2,ROW(Veikla)-MIN(ROW(Veikla))+1),ROWS($B$3:B79)))&CHAR(10),\"\")","v":""}]
[null,{"$f":"IFERROR(INDEX(Veikla,SMALL(IF(Tikslas=$B$2,ROW(Veikla)-MIN(ROW(Veikla))+1),ROWS($B$3:B80)))&\" \"&CHAR(10)&(INDEX(Rezultatas,SMALL(IF(Tikslas=$B$2,ROW(Rezultatas)-MIN(ROW(Rezultatas))+1),ROWS($B$3:B80))))&CHAR(10),\"\")","v":""},null,{"$f":"IFERROR(INDEX(Veikla,SMALL(IF(Tikslas=$D$2,ROW(Veikla)-MIN(ROW(Veikla))+1),ROWS($B$3:B80)))&CHAR(10),\"\")","v":""},null,{"$f":"IFERROR(INDEX(Veikla,SMALL(IF(Tikslas=$F$2,ROW(Veikla)-MIN(ROW(Veikla))+1),ROWS($B$3:B80)))&CHAR(10),\"\")","v":""},null,{"$f":"IFERROR(INDEX(Veikla,SMALL(IF(Tikslas=$H$2,ROW(Veikla)-MIN(ROW(Veikla))+1),ROWS($B$3:B80)))&CHAR(10),\"\")","v":""}]
[null,{"$f":"IFERROR(INDEX(Veikla,SMALL(IF(Tikslas=$B$2,ROW(Veikla)-MIN(ROW(Veikla))+1),ROWS($B$3:B81)))&\" \"&CHAR(10)&(INDEX(Rezultatas,SMALL(IF(Tikslas=$B$2,ROW(Rezultatas)-MIN(ROW(Rezultatas))+1),ROWS($B$3:B81))))&CHAR(10),\"\")","v":""},null,{"$f":"IFERROR(INDEX(Veikla,SMALL(IF(Tikslas=$D$2,ROW(Veikla)-MIN(ROW(Veikla))+1),ROWS($B$3:B81)))&CHAR(10),\"\")","v":""},null,{"$f":"IFERROR(INDEX(Veikla,SMALL(IF(Tikslas=$F$2,ROW(Veikla)-MIN(ROW(Veikla))+1),ROWS($B$3:B81)))&CHAR(10),\"\")","v":""},null,{"$f":"IFERROR(INDEX(Veikla,SMALL(IF(Tikslas=$H$2,ROW(Veikla)-MIN(ROW(Veikla))+1),ROWS($B$3:B81)))&CHAR(10),\"\")","v":""}]
[null,{"$f":"IFERROR(INDEX(Veikla,SMALL(IF(Tikslas=$B$2,ROW(Veikla)-MIN(ROW(Veikla))+1),ROWS($B$3:B82)))&\" \"&CHAR(10)&(INDEX(Rezultatas,SMALL(IF(Tikslas=$B$2,ROW(Rezultatas)-MIN(ROW(Rezultatas))+1),ROWS($B$3:B82))))&CHAR(10),\"\")","v":""},null,{"$f":"IFERROR(INDEX(Veikla,SMALL(IF(Tikslas=$D$2,ROW(Veikla)-MIN(ROW(Veikla))+1),ROWS($B$3:B82)))&CHAR(10),\"\")","v":""},null,{"$f":"IFERROR(INDEX(Veikla,SMALL(IF(Tikslas=$F$2,ROW(Veikla)-MIN(ROW(Veikla))+1),ROWS($B$3:B82)))&CHAR(10),\"\")","v":""},null,{"$f":"IFERROR(INDEX(Veikla,SMALL(IF(Tikslas=$H$2,ROW(Veikla)-MIN(ROW(Veikla))+1),ROWS($B$3:B82)))&CHAR(10),\"\")","v":""}]
[null,{"$f":"IFERROR(INDEX(Veikla,SMALL(IF(Tikslas=$B$2,ROW(Veikla)-MIN(ROW(Veikla))+1),ROWS($B$3:B83)))&\" \"&CHAR(10)&(INDEX(Rezultatas,SMALL(IF(Tikslas=$B$2,ROW(Rezultatas)-MIN(ROW(Rezultatas))+1),ROWS($B$3:B83))))&CHAR(10),\"\")","v":""},null,{"$f":"IFERROR(INDEX(Veikla,SMALL(IF(Tikslas=$D$2,ROW(Veikla)-MIN(ROW(Veikla))+1),ROWS($B$3:B83)))&CHAR(10),\"\")","v":""},null,{"$f":"IFERROR(INDEX(Veikla,SMALL(IF(Tikslas=$F$2,ROW(Veikla)-MIN(ROW(Veikla))+1),ROWS($B$3:B83)))&CHAR(10),\"\")","v":""},null,{"$f":"IFERROR(INDEX(Veikla,SMALL(IF(Tikslas=$H$2,ROW(Veikla)-MIN(ROW(Veikla))+1),ROWS($B$3:B83)))&CHAR(10),\"\")","v":""}]
[null,{"$f":"IFERROR(INDEX(Veikla,SMALL(IF(Tikslas=$B$2,ROW(Veikla)-MIN(ROW(Veikla))+1),ROWS($B$3:B84)))&\" \"&CHAR(10)&(INDEX(Rezultatas,SMALL(IF(Tikslas=$B$2,ROW(Rezultatas)-MIN(ROW(Rezultatas))+1),ROWS($B$3:B84))))&CHAR(10),\"\")","v":""},null,{"$f":"IFERROR(INDEX(Veikla,SMALL(IF(Tikslas=$D$2,ROW(Veikla)-MIN(ROW(Veikla))+1),ROWS($B$3:B84)))&CHAR(10),\"\")","v":""},null,{"$f":"IFERROR(INDEX(Veikla,SMALL(IF(Tikslas=$F$2,ROW(Veikla)-MIN(ROW(Veikla))+1),ROWS($B$3:B84)))&CHAR(10),\"\")","v":""},null,{"$f":"IFERROR(INDEX(Veikla,SMALL(IF(Tikslas=$H$2,ROW(Veikla)-MIN(ROW(Veikla))+1),ROWS($B$3:B84)))&CHAR(10),\"\")","v":""}]
[null,{"$f":"IFERROR(INDEX(Veikla,SMALL(IF(Tikslas=$B$2,ROW(Veikla)-MIN(ROW(Veikla))+1),ROWS($B$3:B85)))&\" \"&CHAR(10)&(INDEX(Rezultatas,SMALL(IF(Tikslas=$B$2,ROW(Rezultatas)-MIN(ROW(Rezultatas))+1),ROWS($B$3:B85))))&CHAR(10),\"\")","v":""},null,{"$f":"IFERROR(INDEX(Veikla,SMALL(IF(Tikslas=$D$2,ROW(Veikla)-MIN(ROW(Veikla))+1),ROWS($B$3:B85)))&CHAR(10),\"\")","v":""},null,{"$f":"IFERROR(INDEX(Veikla,SMALL(IF(Tikslas=$F$2,ROW(Veikla)-MIN(ROW(Veikla))+1),ROWS($B$3:B85)))&CHAR(10),\"\")","v":""},null,{"$f":"IFERROR(INDEX(Veikla,SMALL(IF(Tikslas=$H$2,ROW(Veikla)-MIN(ROW(Veikla))+1),ROWS($B$3:B85)))&CHAR(10),\"\")","v":""}]
[null,{"$f":"IFERROR(INDEX(Veikla,SMALL(IF(Tikslas=$B$2,ROW(Veikla)-MIN(ROW(Veikla))+1),ROWS($B$3:B86)))&\" \"&CHAR(10)&(INDEX(Rezultatas,SMALL(IF(Tikslas=$B$2,ROW(Rezultatas)-MIN(ROW(Rezultatas))+1),ROWS($B$3:B86))))&CHAR(10),\"\")","v":""},null,{"$f":"IFERROR(INDEX(Veikla,SMALL(IF(Tikslas=$D$2,ROW(Veikla)-MIN(ROW(Veikla))+1),ROWS($B$3:B86)))&CHAR(10),\"\")","v":""},null,{"$f":"IFERROR(INDEX(Veikla,SMALL(IF(Tikslas=$F$2,ROW(Veikla)-MIN(ROW(Veikla))+1),ROWS($B$3:B86)))&CHAR(10),\"\")","v":""},null,{"$f":"IFERROR(INDEX(Veikla,SMALL(IF(Tikslas=$H$2,ROW(Veikla)-MIN(ROW(Veikla))+1),ROWS($B$3:B86)))&CHAR(10),\"\")","v":""}]
[null,{"$f":"IFERROR(INDEX(Veikla,SMALL(IF(Tikslas=$B$2,ROW(Veikla)-MIN(ROW(Veikla))+1),ROWS($B$3:B87)))&\" \"&CHAR(10)&(INDEX(Rezultatas,SMALL(IF(Tikslas=$B$2,ROW(Rezultatas)-MIN(ROW(Rezultatas))+1),ROWS($B$3:B87))))&CHAR(10),\"\")","v":""},null,{"$f":"IFERROR(INDEX(Veikla,SMALL(IF(Tikslas=$D$2,ROW(Veikla)-MIN(ROW(Veikla))+1),ROWS($B$3:B87)))&CHAR(10),\"\")","v":""},null,{"$f":"IFERROR(INDEX(Veikla,SMALL(IF(Tikslas=$F$2,ROW(Veikla)-MIN(ROW(Veikla))+1),ROWS($B$3:B87)))&CHAR(10),\"\")","v":""},null,{"$f":"IFERROR(INDEX(Veikla,SMALL(IF(Tikslas=$H$2,ROW(Veikla)-MIN(ROW(Veikla))+1),ROWS($B$3:B87)))&CHAR(10),\"\")","v":""}]
[null,{"$f":"IFERROR(INDEX(Veikla,SMALL(IF(Tikslas=$B$2,ROW(Veikla)-MIN(ROW(Veikla))+1),ROWS($B$3:B88)))&\" \"&CHAR(10)&(INDEX(Rezultatas,SMALL(IF(Tikslas=$B$2,ROW(Rezultatas)-MIN(ROW(Rezultatas))+1),ROWS($B$3:B88))))&CHAR(10),\"\")","v":""},null,{"$f":"IFERROR(INDEX(Veikla,SMALL(IF(Tikslas=$D$2,ROW(Veikla)-MIN(ROW(Veikla))+1),ROWS($B$3:B88)))&CHAR(10),\"\")","v":""},null,{"$f":"IFERROR(INDEX(Veikla,SMALL(IF(Tikslas=$F$2,ROW(Veikla)-MIN(ROW(Veikla))+1),ROWS($B$3:B88)))&CHAR(10),\"\")","v":""},null,{"$f":"IFERROR(INDEX(Veikla,SMALL(IF(Tikslas=$H$2,ROW(Veikla)-MIN(ROW(Veikla))+1),ROWS($B$3:B88)))&CHAR(10),\"\")","v":""}]
[null,{"$f":"IFERROR(INDEX(Veikla,SMALL(IF(Tikslas=$B$2,ROW(Veikla)-MIN(ROW(Veikla))+1),ROWS($B$3:B89)))&\" \"&CHAR(10)&(INDEX(Rezultatas,SMALL(IF(Tikslas=$B$2,ROW(Rezultatas)-MIN(ROW(Rezultatas))+1),ROWS($B$3:B89))))&CHAR(10),\"\")","v":""},null,{"$f":"IFERROR(INDEX(Veikla,SMALL(IF(Tikslas=$D$2,ROW(Veikla)-MIN(ROW(Veikla))+1),ROWS($B$3:B89)))&CHAR(10),\"\")","v":""},null,{"$f":"IFERROR(INDEX(Veikla,SMALL(IF(Tikslas=$F$2,ROW(Veikla)-MIN(ROW(Veikla))+1),ROWS($B$3:B89)))&CHAR(10),\"\")","v":""},null,{"$f":"IFERROR(INDEX(Veikla,SMALL(IF(Tikslas=$H$2,ROW(Veikla)-MIN(ROW(Veikla))+1),ROWS($B$3:B89)))&CHAR(10),\"\")","v":""}]
[null,{"$f":"IFERROR(INDEX(Veikla,SMALL(IF(Tikslas=$B$2,ROW(Veikla)-MIN(ROW(Veikla))+1),ROWS($B$3:B90)))&\" \"&CHAR(10)&(INDEX(Rezultatas,SMALL(IF(Tikslas=$B$2,ROW(Rezultatas)-MIN(ROW(Rezultatas))+1),ROWS($B$3:B90))))&CHAR(10),\"\")","v":""},null,{"$f":"IFERROR(INDEX(Veikla,SMALL(IF(Tikslas=$D$2,ROW(Veikla)-MIN(ROW(Veikla))+1),ROWS($B$3:B90)))&CHAR(10),\"\")","v":""},null,{"$f":"IFERROR(INDEX(Veikla,SMALL(IF(Tikslas=$F$2,ROW(Veikla)-MIN(ROW(Veikla))+1),ROWS($B$3:B90)))&CHAR(10),\"\")","v":""},null,{"$f":"IFERROR(INDEX(Veikla,SMALL(IF(Tikslas=$H$2,ROW(Veikla)-MIN(ROW(Veikla))+1),ROWS($B$3:B90)))&CHAR(10),\"\")","v":""}]
[null,{"$f":"IFERROR(INDEX(Veikla,SMALL(IF(Tikslas=$B$2,ROW(Veikla)-MIN(ROW(Veikla))+1),ROWS($B$3:B91)))&\" \"&CHAR(10)&(INDEX(Rezultatas,SMALL(IF(Tikslas=$B$2,ROW(Rezultatas)-MIN(ROW(Rezultatas))+1),ROWS($B$3:B91))))&CHAR(10),\"\")","v":""},null,{"$f":"IFERROR(INDEX(Veikla,SMALL(IF(Tikslas=$D$2,ROW(Veikla)-MIN(ROW(Veikla))+1),ROWS($B$3:B91)))&CHAR(10),\"\")","v":""},null,{"$f":"IFERROR(INDEX(Veikla,SMALL(IF(Tikslas=$F$2,ROW(Veikla)-MIN(ROW(Veikla))+1),ROWS($B$3:B91)))&CHAR(10),\"\")","v":""},null,{"$f":"IFERROR(INDEX(Veikla,SMALL(IF(Tikslas=$H$2,ROW(Veikla)-MIN(ROW(Veikla))+1),ROWS($B$3:B91)))&CHAR(10),\"\")","v":""}]
[null,{"$f":"IFERROR(INDEX(Veikla,SMALL(IF(Tikslas=$B$2,ROW(Veikla)-MIN(ROW(Veikla))+1),ROWS($B$3:B92)))&\" \"&CHAR(10)&(INDEX(Rezultatas,SMALL(IF(Tikslas=$B$2,ROW(Rezultatas)-MIN(ROW(Rezultatas))+1),ROWS($B$3:B92))))&CHAR(10),\"\")","v":""},null,{"$f":"IFERROR(INDEX(Veikla,SMALL(IF(Tikslas=$D$2,ROW(Veikla)-MIN(ROW(Veikla))+1),ROWS($B$3:B92)))&CHAR(10),\"\")","v":""},null,{"$f":"IFERROR(INDEX(Veikla,SMALL(IF(Tikslas=$F$2,ROW(Veikla)-MIN(ROW(Veikla))+1),ROWS($B$3:B92)))&CHAR(10),\"\")","v":""},null,{"$f":"IFERROR(INDEX(Veikla,SMALL(IF(Tikslas=$H$2,ROW(Veikla)-MIN(ROW(Veikla))+1),ROWS($B$3:B92)))&CHAR(10),\"\")","v":""}]
[null,{"$f":"IFERROR(INDEX(Veikla,SMALL(IF(Tikslas=$B$2,ROW(Veikla)-MIN(ROW(Veikla))+1),ROWS($B$3:B93)))&\" \"&CHAR(10)&(INDEX(Rezultatas,SMALL(IF(Tikslas=$B$2,ROW(Rezultatas)-MIN(ROW(Rezultatas))+1),ROWS($B$3:B93))))&CHAR(10),\"\")","v":""},null,{"$f":"IFERROR(INDEX(Veikla,SMALL(IF(Tikslas=$D$2,ROW(Veikla)-MIN(ROW(Veikla))+1),ROWS($B$3:B93)))&CHAR(10),\"\")","v":""},null,{"$f":"IFERROR(INDEX(Veikla,SMALL(IF(Tikslas=$F$2,ROW(Veikla)-MIN(ROW(Veikla))+1),ROWS($B$3:B93)))&CHAR(10),\"\")","v":""},null,{"$f":"IFERROR(INDEX(Veikla,SMALL(IF(Tikslas=$H$2,ROW(Veikla)-MIN(ROW(Veikla))+1),ROWS($B$3:B93)))&CHAR(10),\"\")","v":""}]
[null,{"$f":"IFERROR(INDEX(Veikla,SMALL(IF(Tikslas=$B$2,ROW(Veikla)-MIN(ROW(Veikla))+1),ROWS($B$3:B94)))&\" \"&CHAR(10)&(INDEX(Rezultatas,SMALL(IF(Tikslas=$B$2,ROW(Rezultatas)-MIN(ROW(Rezultatas))+1),ROWS($B$3:B94))))&CHAR(10),\"\")","v":""},null,{"$f":"IFERROR(INDEX(Veikla,SMALL(IF(Tikslas=$D$2,ROW(Veikla)-MIN(ROW(Veikla))+1),ROWS($B$3:B94)))&CHAR(10),\"\")","v":""},null,{"$f":"IFERROR(INDEX(Veikla,SMALL(IF(Tikslas=$F$2,ROW(Veikla)-MIN(ROW(Veikla))+1),ROWS($B$3:B94)))&CHAR(10),\"\")","v":""},null,{"$f":"IFERROR(INDEX(Veikla,SMALL(IF(Tikslas=$H$2,ROW(Veikla)-MIN(ROW(Veikla))+1),ROWS($B$3:B94)))&CHAR(10),\"\")","v":""}]
[null,{"$f":"IFERROR(INDEX(Veikla,SMALL(IF(Tikslas=$B$2,ROW(Veikla)-MIN(ROW(Veikla))+1),ROWS($B$3:B95)))&\" \"&CHAR(10)&(INDEX(Rezultatas,SMALL(IF(Tikslas=$B$2,ROW(Rezultatas)-MIN(ROW(Rezultatas))+1),ROWS($B$3:B95))))&CHAR(10),\"\")","v":""},null,{"$f":"IFERROR(INDEX(Veikla,SMALL(IF(Tikslas=$D$2,ROW(Veikla)-MIN(ROW(Veikla))+1),ROWS($B$3:B95)))&CHAR(10),\"\")","v":""},null,{"$f":"IFERROR(INDEX(Veikla,SMALL(IF(Tikslas=$F$2,ROW(Veikla)-MIN(ROW(Veikla))+1),ROWS($B$3:B95)))&CHAR(10),\"\")","v":""},null,{"$f":"IFERROR(INDEX(Veikla,SMALL(IF(Tikslas=$H$2,ROW(Veikla)-MIN(ROW(Veikla))+1),ROWS($B$3:B95)))&CHAR(10),\"\")","v":""}]
[null,{"$f":"IFERROR(INDEX(Veikla,SMALL(IF(Tikslas=$B$2,ROW(Veikla)-MIN(ROW(Veikla))+1),ROWS($B$3:B96)))&\" \"&CHAR(10)&(INDEX(Rezultatas,SMALL(IF(Tikslas=$B$2,ROW(Rezultatas)-MIN(ROW(Rezultatas))+1),ROWS($B$3:B96))))&CHAR(10),\"\")","v":""},null,{"$f":"IFERROR(INDEX(Veikla,SMALL(IF(Tikslas=$D$2,ROW(Veikla)-MIN(ROW(Veikla))+1),ROWS($B$3:B96)))&CHAR(10),\"\")","v":""},null,{"$f":"IFERROR(INDEX(Veikla,SMALL(IF(Tikslas=$F$2,ROW(Veikla)-MIN(ROW(Veikla))+1),ROWS($B$3:B96)))&CHAR(10),\"\")","v":""},null,{"$f":"IFERROR(INDEX(Veikla,SMALL(IF(Tikslas=$H$2,ROW(Veikla)-MIN(ROW(Veikla))+1),ROWS($B$3:B96)))&CHAR(10),\"\")","v":""}]
[null,{"$f":"IFERROR(INDEX(Veikla,SMALL(IF(Tikslas=$B$2,ROW(Veikla)-MIN(ROW(Veikla))+1),ROWS($B$3:B97)))&\" \"&CHAR(10)&(INDEX(Rezultatas,SMALL(IF(Tikslas=$B$2,ROW(Rezultatas)-MIN(ROW(Rezultatas))+1),ROWS($B$3:B97))))&CHAR(10),\"\")","v":""},null,{"$f":"IFERROR(INDEX(Veikla,SMALL(IF(Tikslas=$D$2,ROW(Veikla)-MIN(ROW(Veikla))+1),ROWS($B$3:B97)))&CHAR(10),\"\")","v":""},null,{"$f":"IFERROR(INDEX(Veikla,SMALL(IF(Tikslas=$F$2,ROW(Veikla)-MIN(ROW(Veikla))+1),ROWS($B$3:B97)))&CHAR(10),\"\")","v":""},null,{"$f":"IFERROR(INDEX(Veikla,SMALL(IF(Tikslas=$H$2,ROW(Veikla)-MIN(ROW(Veikla))+1),ROWS($B$3:B97)))&CHAR(10),\"\")","v":""}]
[null,{"$f":"IFERROR(INDEX(Veikla,SMALL(IF(Tikslas=$B$2,ROW(Veikla)-MIN(ROW(Veikla))+1),ROWS($B$3:B98)))&\" \"&CHAR(10)&(INDEX(Rezultatas,SMALL(IF(Tikslas=$B$2,ROW(Rezultatas)-MIN(ROW(Rezultatas))+1),ROWS($B$3:B98))))&CHAR(10),\"\")","v":""},null,{"$f":"IFERROR(INDEX(Veikla,SMALL(IF(Tikslas=$D$2,ROW(Veikla)-MIN(ROW(Veikla))+1),ROWS($B$3:B98)))&CHAR(10),\"\")","v":""},null,{"$f":"IFERROR(INDEX(Veikla,SMALL(IF(Tikslas=$F$2,ROW(Veikla)-MIN(ROW(Veikla))+1),ROWS($B$3:B98)))&CHAR(10),\"\")","v":""},null,{"$f":"IFERROR(INDEX(Veikla,SMALL(IF(Tikslas=$H$2,ROW(Veikla)-MIN(ROW(Veikla))+1),ROWS($B$3:B98)))&CHAR(10),\"\")","v":""}]
[null,{"$f":"IFERROR(INDEX(Veikla,SMALL(IF(Tikslas=$B$2,ROW(Veikla)-MIN(ROW(Veikla))+1),ROWS($B$3:B99)))&\" \"&CHAR(10)&(INDEX(Rezultatas,SMALL(IF(Tikslas=$B$2,ROW(Rezultatas)-MIN(ROW(Rezultatas))+1),ROWS($B$3:B99))))&CHAR(10),\"\")","v":""},null,{"$f":"IFERROR(INDEX(Veikla,SMALL(IF(Tikslas=$D$2,ROW(Veikla)-MIN(ROW(Veikla))+1),ROWS($B$3:B99)))&CHAR(10),\"\")","v":""},null,{"$f":"IFERROR(INDEX(Veikla,SMALL(IF(Tikslas=$F$2,ROW(Veikla)-MIN(ROW(Veikla))+1),ROWS($B$3:B99)))&CHAR(10),\"\")","v":""},null,{"$f":"IFERROR(INDEX(Veikla,SMALL(IF(Tikslas=$H$2,ROW(Veikla)-MIN(ROW(Veikla))+1),ROWS($B$3:B99)))&CHAR(10),\"\")","v":""}]
[null,{"$f":"IFERROR(INDEX(Veikla,SMALL(IF(Tikslas=$B$2,ROW(Veikla)-MIN(ROW(Veikla))+1),ROWS($B$3:B100)))&\" \"&CHAR(10)&(INDEX(Rezultatas,SMALL(IF(Tikslas=$B$2,ROW(Rezultatas)-MIN(ROW(Rezultatas))+1),ROWS($B$3:B100))))&CHAR(10),\"\")","v":""},null,{"$f":"IFERROR(INDEX(Veikla,SMALL(IF(Tikslas=$D$2,ROW(Veikla)-MIN(ROW(Veikla))+1),ROWS($B$3:B100)))&CHAR(10),\"\")","v":""},null,{"$f":"IFERROR(INDEX(Veikla,SMALL(IF(Tikslas=$F$2,ROW(Veikla)-MIN(ROW(Veikla))+1),ROWS($B$3:B100)))&CHAR(10),\"\")","v":""},null,{"$f":"IFERROR(INDEX(Veikla,SMALL(IF(Tikslas=$H$2,ROW(Veikla)-MIN(ROW(Veikla))+1),ROWS($B$3:B100)))&CHAR(10),\"\")","v":""}]

{"sheet":"Apie","index":2,"n_rows":6,"n_cols":1,"rows_kept":6}
["Apie šią darbaknygę"]
["Instrukcijos, kai naudojami ekrano skaitytuvai"]
["Šioje darbaknygėje yra 3 darbalapiai. \n\nVeiksmų plano duomenys\nLankstusis veiksmų planas\nApie\n\nKiekvieno darbalapio instrukcijos yra kiekvieno darbalapio A stulpelyje nuo A1 langelio. Jos parašytos naudojant paslėptą tekstą. Kiekvienas instrukcijų veiksmas padeda suprasti tos eilutės informaciją. Kiekvienas paskesnis veiksmas tęsiamas A2 langelyje, tada A3 ir t. t., nebent kai aiškiai nurodoma kitaip. Pavyzdžiui, norint pereiti prie kito veiksmo instrukcijoje gali būti nurodyta „eikite į A6 langelį“. \n\nPaslėptas tekstas nebus spausdinamas.\n\nNorėdami pašalinti šias instrukcijas iš bet kurio darbalapio, tiesiog panaikinkite A stulpelį.\n"]
["Apie šią darbaknygę"]
["Įveskite informaciją apie gaires darbalapyje Veiksmų plano duomenys.  Būtinai rikiuokite pagal prioritetą, po kurio eina gairė, kad rodiniai Atlikta, Dabartinis, Trumpuoju laikotarpiu ir Ateityje būtų rodomi mažėjančio prioriteto tvarka – didžiausio prioriteto elementai bus viršuje. Veiksmų planas, esantis darbalapyje Lankstusis veiksmų planas, atnaujinamas automatiškai.\n"]
["Tai paskutinis nurodymas šiame darbalapyje."]